{"text_format":"1","workbook":"xlsx","n_sheets":5,"sheets":["Instructivo","Formato","Matriz solicitudes","Listas","Datos"],"not_rendered":{"charts":0,"images":4,"macros":1,"external_links":0,"defined_names":104,"comments":0,"pivot_tables":0},"unopened":[],"bounds":{"document_bytes":16777216,"sheet_cells":100000,"rows_first":2000,"rows_last":500,"rows_between":2000,"halvings":0,"cell_chars":16384,"cell_head_chars":4096},"cells_cut":0,"cells_raw":0,"read":"whole","date_system":"1900"}

{"sheet":"Instructivo","index":0,"n_rows":25,"n_cols":5,"rows_kept":25,"cut":false,"hidden":false,"merged":[[21,2,21,4],[22,2,22,4],[24,1,24,4],[1,1,3,1],[1,2,3,2],[3,3,3,4],[8,2,9,3],[14,1,14,4],[15,2,15,4],[16,2,16,4],[17,1,17,4],[18,2,18,4],[19,2,19,4],[20,2,20,4]]}
[]
[null,null,"PROCESO\nGESTIÓN DE TECNOLOGÍAS E INFORMACIÓN \n\nFORMATO DE SOLICITUD DE SERVICIOS DE TECNOLOGÍA","F1.P2.GTI","2026-05-07"]
[null,null,null,"Versión 18","Página 1 de 3"]
[null,null,null,"Clasificación de la información: \nClasificada"]
[]
[]
[]
[]
[null,null,"Señor usuario si le aparece este cuadro de advertencia por favor haga clic en la opción \"Habilitar contenido\""]
[]
[]
[]
[]
[]
[null,"Instructivo para diligenciar el Formato"]
[null,"Sección","Definición"]
[null,"Generalidad:","\nPara iniciar con el diligenciamiento del formato debe seleccionar la opción que va a tramitar \nen \"ELIJA AQUÍ EL TIPO DE SOLICITUD\" posteriormente diligencie los campos resaltados.\n                            \n\n                                                                                                                                               Al ingresar en la opción servicios adicionales saldrán más servicios.\n\n\n\n\n\n\n"]
[null,"Diligenciamiento de algunos campos para tener en cuenta"]
[null,"Proceso en cuentas de red:\n\nCreación cuenta de red y correo\nActivación de cuentas por renovación de contrato\nActivación de cuentas por vacaciones / licencias\nDesactivación de cuentas por finalización de contrato\nDesactivación de cuentas por vacaciones / licencias","\n\nPara el proceso de solicitud en cuentas de red es necesario ingresar los datos del usuario en cada una de las opciones que se seleccione (creación, activación, desactivación), las cuales automáticamente aparecerán sombreados, esos son los campos obligatorios y con los cuales se brindará trámite a la solicitud."]
[null,"Proceso de Listas de distribución:\n\nCrear listas de distribución\nActualizar listas de distribución\nPermiso de envío a listas\nActualizar información","\nEn los casos de listas de distribución se deben diligenciar los campos de información del usuario obligatoriamente los cuales se pondrán sombreados para identificarlos.\n\n-Crear lista de distribución ingresar datos sombreados (Escriba el nombre de la lista, escriba el correo del administrador de la lista) \n-Actualizar listas de distribución (Escriba el nombre de la Lista, en caso de requerir modificar el administrador, indique el nuevo administrador)\n-Permisos sobre envío a listas, debe ingresar los datos sombreados (Escriba el Nombre de la Lista) \n-Actualizar información, ingresar datos del usuario."]
[null,"Proceso carpetas SharePoint o (NAS/Fileserver)\n\nCreación de carpeta SharePoint\nPermisos sobre carpeta SharePoint\nEliminación de carpeta SharePoint","\nPara creación se debe ingresar los datos sombreados escriba la escriba el nombre de la carpeta, escriba el nombre del administrador de la carpeta.\t\nPermisos, se debe ingresar los datos sombreados, ruta y el nombre de la carpeta\nEliminación, ingresar los datos sombreados, ruta y el nombre de la carpeta"]
[null,"Proceso para telefonía:\n\nExtensión telefónica (VoIP)\nClave telefónica (VoIP)\nCambio de nombre (VoIP)\nActualizar extensión en tarjeta de contacto","\n-Extensión telefónica (VoIP), debe seleccionar una de las siguientes opciones( Usuario ya posee teléfono, Usuario ya posee diadema, No tiene teléfono o diadema), que dará color a los campos obligatorios con los cuales se brindará tramite a la solicitud.\n-Cambio de nombre (VoIP), debe seleccionar una de las siguientes opciones (Es mi extensión personal, Deseo que me contacten allí), que dará color a los campos obligatorios con los cuales se brindará trámite a la solicitud.\n-Clave telefónica (VoIP), Los campos en color  son obligatorios con los cuales se brindará trámite a la solicitud.\n-Actualizar extensión en tarjeta de contacto, los campos en color son obligatorios con los cuales se brindará trámite a la solicitud."]
[null,"Servicios adicionales \n\nPermisos internet\nCuenta genérica\nBuzón compartido\nPermisos sobre buzón\nConfiguración de perfil en el equipo\nCuenta convocatoria pública\nInstalación software\nBorrado de información\nCopia de información (Backup)\nAsignación de equipo\nImpresora\nScanner\nMonitor\nUnidad externa o periféricos\n","Para los servicios adicionales, al seleccionar cualquiera de estos, pedirá unos datos diferentes los cuales se identificarán, porque al seleccionar alguno, quedarán marcados con un color, estos datos son obligatorios para dar trámite a la solicitud."]
[]
[null,"Antes de imprimir este documento… piense en el medio ambiente!  \nCualquier copia impresa de este documento se considera como COPIA NO CONTROLADA.\n"]

{"sheet":"Formato","index":1,"n_rows":120,"n_cols":39,"rows_kept":120,"cut":false,"hidden":false,"merged":[[8,1,8,12],[16,4,16,12],[17,1,17,12],[119,1,119,12],[10,1,10,3],[10,4,10,12],[12,1,12,3],[12,4,12,12],[14,1,14,3],[14,4,14,12],[16,1,16,3],[4,4,4,12],[5,1,5,3],[5,4,5,6],[5,7,5,9],[6,1,6,3],[6,4,6,6],[6,7,6,9],[0,1,0,12],[1,1,3,2],[1,3,3,19],[1,21,1,22],[2,21,2,22],[3,20,3,22]]}
[]
[null,null,null,"PROCESO\nGESTIÓN DE TECNOLOGÍAS E INFORMACIÓN \n\nFORMATO DE SOLICITUD DE SERVICIOS DE TECNOLOGÍA",null,null,null,null,null,null,null,null,null,null,null,null,null,null,null,null,"F1.P2.GTI","2026-05-07"]
[null,null,null,null,null,null,null,null,null,null,null,null,null,null,null,null,null,null,null,null,"Versión 18","Página 2  de 3"]
[null,null,null,null,null,null,null,null,null,null,null,null,null,null,null,null,null,null,null,null,"Clasificación de la información: \nClasificada"]
[]
[null,"ELIJA AQUÍ EL TIPO DE SOLICITUD",null,null,{"$f":"IFERROR(IF($B$7=\"Servicios adicionales\",\"ELIJA EL SERVICIO REQUERIDO\",IF($B$7=\"Actualizar listas de distribución\",\"ELIJA EL SERVICIO REQUERIDO\",\" \")),\"\")","v":" "},null,null,{"$f":"IFERROR(IF($E$7=\"Extensión telefónica (VoIP)\",\"ELIJA UNA OPCIÓN\",IF($E$7=\"Cambio de nombre (VoIP)\",\"ELIJA UNA OPCIÓN\",IF($E$7=\"VPN\",\"ELIJA UNA OPCIÓN\",IF($E$7=\"Permisos internet\",\"ELIJA UNA OPCIÓN\",IF($E$7=\"Copia de información (Backup)\",\"ELIJA UNA OPCIÓN\",IF($E$7=\"Borrado de información\",\"ELIJA UNA OPCIÓN\",IF($E$7=\"Cuenta genérica\",\"ELIJA UNA OPCIÓN\",\" \"))))))),\" \")","v":" "}]
[null,null,null,null,null,null,null,null,null,null,null,null,null,null,null,null,null,null,null,null,null,null,null,null,null,null,null,null,null,null,null,null,null,null,null,null,{"$f":"IFERROR(VLOOKUP(B7,Listas!AB1:AD26,2,0),\"\")","v":""},{"$f":"IFERROR(VLOOKUP(E7,Listas!Y2:AA20,2,0),\"\")","v":""}]
[]
[]
[]
[null,{"$f":"IFERROR(IF($B$7=\"Permisos SharePoint o (NAS/Fileserver)\",\"Justificación:\",IF($E$7=\"Permisos sobre buzón\",\"Justificación\",IF($B$7=\"Actualizar listas de distribución\",\"Nombre de la Lista\",IF($B$7=\"Permiso de envío a listas\",\"Nombre de la Lista\",IF($E$7=\"VPN\",\"Justificación\",IF($E$7=\"Cuenta genérica\",\"Nombre de la Cuenta Genérica\",IF($E$7=\"Unidad externa / periféricos\",\"Justificación\",IF($E$7=\"Información almacenada en el equipo\",\"Justificación\",IF($E$7=\"Información almacenada en el equipo y correo\",\"Justificación\",IF($E$7=\"Cuenta convocatoria pública\",\"Justificación\",IF($E$7=\"Buzón compartido\",\"Nombre del Buzón\",IF($E$7=\"Cambio de Licencia Office\",\"Justificación:\",\"\")))))))))))),\"\")","v":""}]
[]
[null,{"$f":"IFERROR(IF($B$7=\"Crear listas de distribución\",\"Escriba el correo del administrador de la lista de Distribución:\",IF($B$7=\"Actualizar listas de distribución\",\"En caso de requerir modificar el administrador, indique el nuevo administrador\",IF($B$7=\"Creación de carpeta NAS / fileserver\",\"Escriba el nombre de la carpeta\",IF($B$7=\"Permisos sobre carpeta NAS / fileserver\",\"Escriba el nombre de la carpeta\",IF($B$7=\"Eliminación de carpeta NAS / fileserver\",\"Escriba el nombre de la carpeta\",IF($E$7=\"Cuenta genérica\",\"Correo del responsable a cargo de la cuenta\",IF($E$7=\"Buzón compartido\",\"Responsable del buzón\",IF($E$7=\"Permisos sobre buzón\",\"Responsable actual del buzón\",IF($E$7=\"Cuenta convocatoria pública\",\"Nombre del proceso\",IF($E$7=\"Instalación software\",\"Justificación\",IF($E$7=\"Información almacenada en el equipo\",\"Observaciones y/o información adicional\",IF($E$7=\"Información almacenada en el equipo y correo\",\"Observaciones y/o información adicional\",IF($H$7=\"Permitir acceso\",\"Justificación\",IF($H$7=\"Restringir acceso\",\"Justificación\",IF($E$7=\"Revision Requisitos guia BYOD\",\"Justificación\",IF($B$7=\"Permisos SharePoint o (NAS/Fileserver)\",\"Nuevo administrador (Solo si aplica):\",\" \")))))))))))))))),\"\")","v":" "}]
[]
[null,{"$f":"IFERROR(IF($B$7=\"Creación de carpeta NAS / fileserver\",\"Escriba el nombre del administrador de la carpeta\",IF($E$7=\"Cuenta convocatoria pública\",\"Fecha de caducidad del buzón\",IF($E$7=\"Cuenta genérica\",\"Justificación de la solicitud\",IF($E$7=\"Permisos sobre buzón\",\"Nuevo responsable del buzón (Solo si Aplica)\",IF($H$7=\"Permitir acceso\",\"Indique el tiempo requerido para el servicio solicitado\",\" \"))))),\" \")","v":" "}]
[]
[null,{"$f":"IFERROR(IF($E$7=\"Cuenta convocatoria pública\",\"Nombre del responsable del buzón\",IF($E$7=\"Cuenta genérica\",\"Fecha de caducidad de la cuenta Genérica\",\" \")),\" \")","v":" "}]
[null,{"$f":"IFERROR(IF($B$7=\"Crear listas de distribución\",\"Diligencie los integrantes de la lista\",IF($E$7=\"Buzón compartido\",\"Diligencie los datos de los Integrantes que tendrán acceso a buzón\",IF($E$7=\"Permisos sobre buzón\",\"Diligencie los datos de los integrantes que tendrán acceso a buzón\",IF($E$7=\"Cuenta convocatoria pública\",\"Diligencie los usuarios que tendrán acceso a la cuenta\",IF($E$7=\"Cuenta genérica\",\"\",IF($E$7=\"Permisos internet\",\"Diligencie en las celdas sombreadas los datos de las personas que requieren el servicio\",IF($E$7=\"VPN\",\"Diligencie los datos sombreados y los datos de las personas que requieren el servicio\",IF($B$7=\"Creación de carpeta NAS / fileserver\",\"Diligencie en las celdas sombreadas los datos de las personas que tendrán acceso a la carpeta\",IF($B$7=\"Permisos sobre carpeta NAS / fileserver\",\"Diligencie en las celdas sombreadas los datos de las personas que tendrán permisos a la carpeta\",IF($B$7=\"Permiso de envío a listas\",\"Diligencie en las celdas sombreadas los datos de las personas que tendrán permisos de envío\",IF($B$7=\"Eliminación SharePoint o (NAS/Fileserver)\",\"Diligencie las celdas sombreadas (Ver hasta columna W)\",\"Diligencie las celdas sombreadas (Ver hasta columna W)\"))))))))))),\" \")","v":"Diligencie las celdas sombreadas (Ver hasta columna W)"}]
[null,"Documento de Identidad",{"$f":"IF($B$7=\"Creación SharePoint o (NAS/Fileserver)\",\"Nombre Administrador\",\"Nombres\")","v":"Nombres"},{"$f":"IF($B$7=\"Creación SharePoint o (NAS/Fileserver)\",\"Apellidos Administrador\",\"Apellidos\")","v":"Apellidos"},{"$f":"IF($B$7=\"Permisos SharePoint o (NAS/Fileserver)\",\"Tipo de permiso (Lectura - Escritura - Modificación)\",IF($B$7=\"Creación SharePoint o (NAS/Fileserver)\",\"Nombre del sitio\",IF($B$7=\"Eliminación SharePoint o (NAS/Fileserver)\",\"Nombre del sitio a eliminar\",IF($B$7=\"Creación cuenta de red y correo\",\"Extensión\",\"Usuario de Dominio\"))))","v":"Usuario de Dominio"},{"$f":"IFERROR(IF($E$7=\"Actualizar extensión en tarjeta de contacto\",\"\",_xludf._xlfn.IFS($B$7=\"Actualizar listas de distribución\",\"Tipo Actualización\",$B$7=\"Creación de carpeta NAS / fileserver\",\"Tipo de Permiso (Lectura, Escritura o Modificación)\",$B$7=\"Permisos sobre carpeta NAS / fileserver\",\"Tipo de Permiso (Lectura, Escritura o Modificación)\",$B$7=\"Otros Servicios\",\"Observaciones\")),\"\")&IF($B$7=\"Crear listas de distribución\",\"Nombre de Lista de Distribución\",IF($B$7=\"Desactivación de cuentas por vacaciones / licencias\",\"Fecha de desactivación\",IF($B$7=\"Permisos SharePoint o (NAS/Fileserver)\",\"Ruta de SharePoint o (NAS/FileServer)\",IF($E$7=\"Buzón compartido\",\"Agregar / Retirar del Buzón\",IF($B$7=\"Actualizar listas de distribución\",\"Agregar / Retirar de Lista\",IF($B$7=\"Creación cuenta de red y correo\",\"Fecha inicio de vinculación\",\"Extensión\"))))))","v":"Extensión"},"Vinculación","Tipo Vinculación / Entidad","Cargo",{"$f":"IFERROR(IF($B$7=\"Copia de información (Backup)\",\"Fecha Requerida Backup\",IF($B$7=\"Desactivación de cuentas por vacaciones / licencias\",\"Fecha de desactivación\",IF($B$7=\"Desactivación de cuentas por finalización de contrato\",\"Fecha de desactivación\",\"Fecha Fin Contrato\"))),\"\")","v":"Fecha Fin Contrato"},"Dirección General o Regional","Dirección General o Regional, Subdirección General o Secretaría General","Dirección, Oficina, Centro Zonal, o Grupo a nivel de Regional ","Tipo de Elemento","Serial de Equipo","Placa (Seven)","Observaciones","Genero","Computador","VPN","Extension Telefónica","Clave Telefónica","Permisos de Internet",null,null,null,null,null,null,null,null,null,null,null,null,null,null,"Regional_DA"]
[null,null,null,null,null,null,null,null,null,null,null,null,null,null,null,null,null,null,null,null,null,null,null,null,{"$f":"IFERROR(VLOOKUP(G20,Listas!$L$2:$M$42,2,0),\"\")","v":""},null,null,null,null,null,null,null,null,null,null,null,{"$f":"IFERROR(VLOOKUP(G20,Listas!#REF!,2,0),\"\")","v":""},{"$f":"IFERROR(VLOOKUP(#REF!,Listas!$H$2:$I$35,2,0),\"\")","v":""},{"$f":"IFERROR(VLOOKUP(AK20,Listas!$L$2:$M$42,2,0),\"\")","v":""}]
[null,null,null,null,null,null,null,null,null,null,null,null,null,null,null,null,null,null,null,null,null,null,null,null,{"$f":"IFERROR(VLOOKUP(G21,Listas!$L$2:$M$42,2,0),\"\")","v":""},null,null,null,null,null,null,null,null,null,null,null,{"$f":"IFERROR(VLOOKUP(G21,Listas!#REF!,2,0),\"\")","v":""},{"$f":"IFERROR(VLOOKUP(#REF!,Listas!$H$2:$I$35,2,0),\"\")","v":""},{"$f":"IFERROR(VLOOKUP(AK21,Listas!$L$2:$M$42,2,0),\"\")","v":""}]
[null,null,null,null,null,null,null,null,null,null,null,null,null,null,null,null,null,null,null,null,null,null,null,null,{"$f":"IFERROR(VLOOKUP(G22,Listas!$L$2:$M$42,2,0),\"\")","v":""},null,null,null,null,null,null,null,null,null,null,null,{"$f":"IFERROR(VLOOKUP(G22,Listas!#REF!,2,0),\"\")","v":""},{"$f":"IFERROR(VLOOKUP(#REF!,Listas!$H$2:$I$35,2,0),\"\")","v":""},{"$f":"IFERROR(VLOOKUP(AK22,Listas!$L$2:$M$42,2,0),\"\")","v":""}]
[null,null,null,null,null,null,null,null,null,null,null,null,null,null,null,null,null,null,null,null,null,null,null,null,{"$f":"IFERROR(VLOOKUP(G23,Listas!$L$2:$M$42,2,0),\"\")","v":""},null,null,null,null,null,null,null,null,null,null,null,{"$f":"IFERROR(VLOOKUP(G23,Listas!#REF!,2,0),\"\")","v":""},{"$f":"IFERROR(VLOOKUP(#REF!,Listas!$H$2:$I$35,2,0),\"\")","v":""},{"$f":"IFERROR(VLOOKUP(AK23,Listas!$L$2:$M$42,2,0),\"\")","v":""}]
[null,null,null,null,null,null,null,null,null,null,null,null,null,null,null,null,null,null,null,null,null,null,null,null,{"$f":"IFERROR(VLOOKUP(G24,Listas!$L$2:$M$42,2,0),\"\")","v":""},null,null,null,null,null,null,null,null,null,null,null,{"$f":"IFERROR(VLOOKUP(G24,Listas!#REF!,2,0),\"\")","v":""},{"$f":"IFERROR(VLOOKUP(#REF!,Listas!$H$2:$I$35,2,0),\"\")","v":""},{"$f":"IFERROR(VLOOKUP(AK24,Listas!$L$2:$M$42,2,0),\"\")","v":""}]
[null,null,null,null,null,null,null,null,null,null,null,null,null,null,null,null,null,null,null,null,null,null,null,null,{"$f":"IFERROR(VLOOKUP(G25,Listas!$L$2:$M$42,2,0),\"\")","v":""},null,null,null,null,null,null,null,null,null,null,null,{"$f":"IFERROR(VLOOKUP(G25,Listas!#REF!,2,0),\"\")","v":""},{"$f":"IFERROR(VLOOKUP(#REF!,Listas!$H$2:$I$35,2,0),\"\")","v":""},{"$f":"IFERROR(VLOOKUP(AK25,Listas!$L$2:$M$42,2,0),\"\")","v":""}]
[null,null,null,null,null,null,null,null,null,null,null,null,null,null,null,null,null,null,null,null,null,null,null,null,{"$f":"IFERROR(VLOOKUP(G26,Listas!$L$2:$M$42,2,0),\"\")","v":""},null,null,null,null,null,null,null,null,null,null,null,{"$f":"IFERROR(VLOOKUP(G26,Listas!#REF!,2,0),\"\")","v":""},{"$f":"IFERROR(VLOOKUP(#REF!,Listas!$H$2:$I$35,2,0),\"\")","v":""},{"$f":"IFERROR(VLOOKUP(AK26,Listas!$L$2:$M$42,2,0),\"\")","v":""}]
[null,null,null,null,null,null,null,null,null,null,null,null,null,null,null,null,null,null,null,null,null,null,null,null,{"$f":"IFERROR(VLOOKUP(G27,Listas!$L$2:$M$42,2,0),\"\")","v":""},null,null,null,null,null,null,null,null,null,null,null,{"$f":"IFERROR(VLOOKUP(G27,Listas!#REF!,2,0),\"\")","v":""},{"$f":"IFERROR(VLOOKUP(#REF!,Listas!$H$2:$I$35,2,0),\"\")","v":""},{"$f":"IFERROR(VLOOKUP(AK27,Listas!$L$2:$M$42,2,0),\"\")","v":""}]
[null,null,null,null,null,null,null,null,null,null,null,null,null,null,null,null,null,null,null,null,null,null,null,null,{"$f":"IFERROR(VLOOKUP(G28,Listas!$L$2:$M$42,2,0),\"\")","v":""},null,null,null,null,null,null,null,null,null,null,null,{"$f":"IFERROR(VLOOKUP(G28,Listas!#REF!,2,0),\"\")","v":""},{"$f":"IFERROR(VLOOKUP(#REF!,Listas!$H$2:$I$35,2,0),\"\")","v":""},{"$f":"IFERROR(VLOOKUP(AK28,Listas!$L$2:$M$42,2,0),\"\")","v":""}]
[null,null,null,null,null,null,null,null,null,null,null,null,null,null,null,null,null,null,null,null,null,null,null,null,{"$f":"IFERROR(VLOOKUP(G29,Listas!$L$2:$M$42,2,0),\"\")","v":""},null,null,null,null,null,null,null,null,null,null,null,{"$f":"IFERROR(VLOOKUP(G29,Listas!#REF!,2,0),\"\")","v":""},{"$f":"IFERROR(VLOOKUP(#REF!,Listas!$H$2:$I$35,2,0),\"\")","v":""},{"$f":"IFERROR(VLOOKUP(AK29,Listas!$L$2:$M$42,2,0),\"\")","v":""}]
[null,null,null,null,null,null,null,null,null,null,null,null,null,null,null,null,null,null,null,null,null,null,null,null,{"$f":"IFERROR(VLOOKUP(G30,Listas!$L$2:$M$42,2,0),\"\")","v":""},null,null,null,null,null,null,null,null,null,null,null,{"$f":"IFERROR(VLOOKUP(G30,Listas!#REF!,2,0),\"\")","v":""},{"$f":"IFERROR(VLOOKUP(#REF!,Listas!$H$2:$I$35,2,0),\"\")","v":""},{"$f":"IFERROR(VLOOKUP(AK30,Listas!$L$2:$M$42,2,0),\"\")","v":""}]
[null,null,null,null,null,null,null,null,null,null,null,null,null,null,null,null,null,null,null,null,null,null,null,null,{"$f":"IFERROR(VLOOKUP(G31,Listas!$L$2:$M$42,2,0),\"\")","v":""},null,null,null,null,null,null,null,null,null,null,null,{"$f":"IFERROR(VLOOKUP(G31,Listas!#REF!,2,0),\"\")","v":""},{"$f":"IFERROR(VLOOKUP(#REF!,Listas!$H$2:$I$35,2,0),\"\")","v":""},{"$f":"IFERROR(VLOOKUP(AK31,Listas!$L$2:$M$42,2,0),\"\")","v":""}]
[null,null,null,null,null,null,null,null,null,null,null,null,null,null,null,null,null,null,null,null,null,null,null,null,{"$f":"IFERROR(VLOOKUP(G32,Listas!$L$2:$M$42,2,0),\"\")","v":""},null,null,null,null,null,null,null,null,null,null,null,{"$f":"IFERROR(VLOOKUP(G32,Listas!#REF!,2,0),\"\")","v":""},{"$f":"IFERROR(VLOOKUP(#REF!,Listas!$H$2:$I$35,2,0),\"\")","v":""},{"$f":"IFERROR(VLOOKUP(AK32,Listas!$L$2:$M$42,2,0),\"\")","v":""}]
[null,null,null,null,null,null,null,null,null,null,null,null,null,null,null,null,null,null,null,null,null,null,null,null,{"$f":"IFERROR(VLOOKUP(G33,Listas!$L$2:$M$42,2,0),\"\")","v":""},null,null,null,null,null,null,null,null,null,null,null,{"$f":"IFERROR(VLOOKUP(G33,Listas!#REF!,2,0),\"\")","v":""},{"$f":"IFERROR(VLOOKUP(#REF!,Listas!$H$2:$I$35,2,0),\"\")","v":""},{"$f":"IFERROR(VLOOKUP(AK33,Listas!$L$2:$M$42,2,0),\"\")","v":""}]
[null,null,null,null,null,null,null,null,null,null,null,null,null,null,null,null,null,null,null,null,null,null,null,null,{"$f":"IFERROR(VLOOKUP(G34,Listas!$L$2:$M$42,2,0),\"\")","v":""},null,null,null,null,null,null,null,null,null,null,null,{"$f":"IFERROR(VLOOKUP(G34,Listas!#REF!,2,0),\"\")","v":""},{"$f":"IFERROR(VLOOKUP(#REF!,Listas!$H$2:$I$35,2,0),\"\")","v":""},{"$f":"IFERROR(VLOOKUP(AK34,Listas!$L$2:$M$42,2,0),\"\")","v":""}]
[null,null,null,null,null,null,null,null,null,null,null,null,null,null,null,null,null,null,null,null,null,null,null,null,{"$f":"IFERROR(VLOOKUP(G35,Listas!$L$2:$M$42,2,0),\"\")","v":""},null,null,null,null,null,null,null,null,null,null,null,{"$f":"IFERROR(VLOOKUP(G35,Listas!#REF!,2,0),\"\")","v":""},{"$f":"IFERROR(VLOOKUP(#REF!,Listas!$H$2:$I$35,2,0),\"\")","v":""},{"$f":"IFERROR(VLOOKUP(AK35,Listas!$L$2:$M$42,2,0),\"\")","v":""}]
[null,null,null,null,null,null,null,null,null,null,null,null,null,null,null,null,null,null,null,null,null,null,null,null,{"$f":"IFERROR(VLOOKUP(G36,Listas!$L$2:$M$42,2,0),\"\")","v":""},null,null,null,null,null,null,null,null,null,null,null,{"$f":"IFERROR(VLOOKUP(G36,Listas!#REF!,2,0),\"\")","v":""},{"$f":"IFERROR(VLOOKUP(#REF!,Listas!$H$2:$I$35,2,0),\"\")","v":""},{"$f":"IFERROR(VLOOKUP(AK36,Listas!$L$2:$M$42,2,0),\"\")","v":""}]
[null,null,null,null,null,null,null,null,null,null,null,null,null,null,null,null,null,null,null,null,null,null,null,null,{"$f":"IFERROR(VLOOKUP(G37,Listas!$L$2:$M$42,2,0),\"\")","v":""},null,null,null,null,null,null,null,null,null,null,null,{"$f":"IFERROR(VLOOKUP(G37,Listas!#REF!,2,0),\"\")","v":""},{"$f":"IFERROR(VLOOKUP(#REF!,Listas!$H$2:$I$35,2,0),\"\")","v":""},{"$f":"IFERROR(VLOOKUP(AK37,Listas!$L$2:$M$42,2,0),\"\")","v":""}]
[null,null,null,null,null,null,null,null,null,null,null,null,null,null,null,null,null,null,null,null,null,null,null,null,{"$f":"IFERROR(VLOOKUP(G38,Listas!$L$2:$M$42,2,0),\"\")","v":""},null,null,null,null,null,null,null,null,null,null,null,{"$f":"IFERROR(VLOOKUP(G38,Listas!#REF!,2,0),\"\")","v":""},{"$f":"IFERROR(VLOOKUP(#REF!,Listas!$H$2:$I$35,2,0),\"\")","v":""},{"$f":"IFERROR(VLOOKUP(AK38,Listas!$L$2:$M$42,2,0),\"\")","v":""}]
[null,null,null,null,null,null,null,null,null,null,null,null,null,null,null,null,null,null,null,null,null,null,null,null,{"$f":"IFERROR(VLOOKUP(G39,Listas!$L$2:$M$42,2,0),\"\")","v":""},null,null,null,null,null,null,null,null,null,null,null,{"$f":"IFERROR(VLOOKUP(G39,Listas!#REF!,2,0),\"\")","v":""},{"$f":"IFERROR(VLOOKUP(#REF!,Listas!$H$2:$I$35,2,0),\"\")","v":""},{"$f":"IFERROR(VLOOKUP(AK39,Listas!$L$2:$M$42,2,0),\"\")","v":""}]
[null,null,null,null,null,null,null,null,null,null,null,null,null,null,null,null,null,null,null,null,null,null,null,null,{"$f":"IFERROR(VLOOKUP(G40,Listas!$L$2:$M$42,2,0),\"\")","v":""},null,null,null,null,null,null,null,null,null,null,null,{"$f":"IFERROR(VLOOKUP(G40,Listas!#REF!,2,0),\"\")","v":""},{"$f":"IFERROR(VLOOKUP(#REF!,Listas!$H$2:$I$35,2,0),\"\")","v":""},{"$f":"IFERROR(VLOOKUP(AK40,Listas!$L$2:$M$42,2,0),\"\")","v":""}]
[null,null,null,null,null,null,null,null,null,null,null,null,null,null,null,null,null,null,null,null,null,null,null,null,{"$f":"IFERROR(VLOOKUP(G41,Listas!$L$2:$M$42,2,0),\"\")","v":""},null,null,null,null,null,null,null,null,null,null,null,{"$f":"IFERROR(VLOOKUP(G41,Listas!#REF!,2,0),\"\")","v":""},{"$f":"IFERROR(VLOOKUP(#REF!,Listas!$H$2:$I$35,2,0),\"\")","v":""},{"$f":"IFERROR(VLOOKUP(AK41,Listas!$L$2:$M$42,2,0),\"\")","v":""}]
[null,null,null,null,null,null,null,null,null,null,null,null,null,null,null,null,null,null,null,null,null,null,null,null,{"$f":"IFERROR(VLOOKUP(G42,Listas!$L$2:$M$42,2,0),\"\")","v":""},null,null,null,null,null,null,null,null,null,null,null,{"$f":"IFERROR(VLOOKUP(G42,Listas!#REF!,2,0),\"\")","v":""},{"$f":"IFERROR(VLOOKUP(#REF!,Listas!$H$2:$I$35,2,0),\"\")","v":""},{"$f":"IFERROR(VLOOKUP(AK42,Listas!$L$2:$M$42,2,0),\"\")","v":""}]
[null,null,null,null,null,null,null,null,null,null,null,null,null,null,null,null,null,null,null,null,null,null,null,null,{"$f":"IFERROR(VLOOKUP(G43,Listas!$L$2:$M$42,2,0),\"\")","v":""},null,null,null,null,null,null,null,null,null,null,null,{"$f":"IFERROR(VLOOKUP(G43,Listas!#REF!,2,0),\"\")","v":""},{"$f":"IFERROR(VLOOKUP(#REF!,Listas!$H$2:$I$35,2,0),\"\")","v":""},{"$f":"IFERROR(VLOOKUP(AK43,Listas!$L$2:$M$42,2,0),\"\")","v":""}]
[null,null,null,null,null,null,null,null,null,null,null,null,null,null,null,null,null,null,null,null,null,null,null,null,{"$f":"IFERROR(VLOOKUP(G44,Listas!$L$2:$M$42,2,0),\"\")","v":""},null,null,null,null,null,null,null,null,null,null,null,{"$f":"IFERROR(VLOOKUP(G44,Listas!#REF!,2,0),\"\")","v":""},{"$f":"IFERROR(VLOOKUP(#REF!,Listas!$H$2:$I$35,2,0),\"\")","v":""},{"$f":"IFERROR(VLOOKUP(AK44,Listas!$L$2:$M$42,2,0),\"\")","v":""}]
[null,null,null,null,null,null,null,null,null,null,null,null,null,null,null,null,null,null,null,null,null,null,null,null,{"$f":"IFERROR(VLOOKUP(G45,Listas!$L$2:$M$42,2,0),\"\")","v":""},null,null,null,null,null,null,null,null,null,null,null,{"$f":"IFERROR(VLOOKUP(G45,Listas!#REF!,2,0),\"\")","v":""},{"$f":"IFERROR(VLOOKUP(#REF!,Listas!$H$2:$I$35,2,0),\"\")","v":""},{"$f":"IFERROR(VLOOKUP(AK45,Listas!$L$2:$M$42,2,0),\"\")","v":""}]
[null,null,null,null,null,null,null,null,null,null,null,null,null,null,null,null,null,null,null,null,null,null,null,null,{"$f":"IFERROR(VLOOKUP(G46,Listas!$L$2:$M$42,2,0),\"\")","v":""},null,null,null,null,null,null,null,null,null,null,null,{"$f":"IFERROR(VLOOKUP(G46,Listas!#REF!,2,0),\"\")","v":""},{"$f":"IFERROR(VLOOKUP(#REF!,Listas!$H$2:$I$35,2,0),\"\")","v":""},{"$f":"IFERROR(VLOOKUP(AK46,Listas!$L$2:$M$42,2,0),\"\")","v":""}]
[null,null,null,null,null,null,null,null,null,null,null,null,null,null,null,null,null,null,null,null,null,null,null,null,{"$f":"IFERROR(VLOOKUP(G47,Listas!$L$2:$M$42,2,0),\"\")","v":""},null,null,null,null,null,null,null,null,null,null,null,{"$f":"IFERROR(VLOOKUP(G47,Listas!#REF!,2,0),\"\")","v":""},{"$f":"IFERROR(VLOOKUP(#REF!,Listas!$H$2:$I$35,2,0),\"\")","v":""},{"$f":"IFERROR(VLOOKUP(AK47,Listas!$L$2:$M$42,2,0),\"\")","v":""}]
[null,null,null,null,null,null,null,null,null,null,null,null,null,null,null,null,null,null,null,null,null,null,null,null,{"$f":"IFERROR(VLOOKUP(G48,Listas!$L$2:$M$42,2,0),\"\")","v":""},null,null,null,null,null,null,null,null,null,null,null,{"$f":"IFERROR(VLOOKUP(G48,Listas!#REF!,2,0),\"\")","v":""},{"$f":"IFERROR(VLOOKUP(#REF!,Listas!$H$2:$I$35,2,0),\"\")","v":""},{"$f":"IFERROR(VLOOKUP(AK48,Listas!$L$2:$M$42,2,0),\"\")","v":""}]
[null,null,null,null,null,null,null,null,null,null,null,null,null,null,null,null,null,null,null,null,null,null,null,null,{"$f":"IFERROR(VLOOKUP(G49,Listas!$L$2:$M$42,2,0),\"\")","v":""},null,null,null,null,null,null,null,null,null,null,null,{"$f":"IFERROR(VLOOKUP(G49,Listas!#REF!,2,0),\"\")","v":""},{"$f":"IFERROR(VLOOKUP(#REF!,Listas!$H$2:$I$35,2,0),\"\")","v":""},{"$f":"IFERROR(VLOOKUP(AK49,Listas!$L$2:$M$42,2,0),\"\")","v":""}]
[null,null,null,null,null,null,null,null,null,null,null,null,null,null,null,null,null,null,null,null,null,null,null,null,{"$f":"IFERROR(VLOOKUP(G50,Listas!$L$2:$M$42,2,0),\"\")","v":""},null,null,null,null,null,null,null,null,null,null,null,{"$f":"IFERROR(VLOOKUP(G50,Listas!#REF!,2,0),\"\")","v":""},{"$f":"IFERROR(VLOOKUP(#REF!,Listas!$H$2:$I$35,2,0),\"\")","v":""},{"$f":"IFERROR(VLOOKUP(AK50,Listas!$L$2:$M$42,2,0),\"\")","v":""}]
[null,null,null,null,null,null,null,null,null,null,null,null,null,null,null,null,null,null,null,null,null,null,null,null,{"$f":"IFERROR(VLOOKUP(G51,Listas!$L$2:$M$42,2,0),\"\")","v":""},null,null,null,null,null,null,null,null,null,null,null,{"$f":"IFERROR(VLOOKUP(G51,Listas!#REF!,2,0),\"\")","v":""},{"$f":"IFERROR(VLOOKUP(#REF!,Listas!$H$2:$I$35,2,0),\"\")","v":""},{"$f":"IFERROR(VLOOKUP(AK51,Listas!$L$2:$M$42,2,0),\"\")","v":""}]
[null,null,null,null,null,null,null,null,null,null,null,null,null,null,null,null,null,null,null,null,null,null,null,null,{"$f":"IFERROR(VLOOKUP(G52,Listas!$L$2:$M$42,2,0),\"\")","v":""},null,null,null,null,null,null,null,null,null,null,null,{"$f":"IFERROR(VLOOKUP(G52,Listas!#REF!,2,0),\"\")","v":""},{"$f":"IFERROR(VLOOKUP(#REF!,Listas!$H$2:$I$35,2,0),\"\")","v":""},{"$f":"IFERROR(VLOOKUP(AK52,Listas!$L$2:$M$42,2,0),\"\")","v":""}]
[null,null,null,null,null,null,null,null,null,null,null,null,null,null,null,null,null,null,null,null,null,null,null,null,{"$f":"IFERROR(VLOOKUP(G53,Listas!$L$2:$M$42,2,0),\"\")","v":""},null,null,null,null,null,null,null,null,null,null,null,{"$f":"IFERROR(VLOOKUP(G53,Listas!#REF!,2,0),\"\")","v":""},{"$f":"IFERROR(VLOOKUP(#REF!,Listas!$H$2:$I$35,2,0),\"\")","v":""},{"$f":"IFERROR(VLOOKUP(AK53,Listas!$L$2:$M$42,2,0),\"\")","v":""}]
[null,null,null,null,null,null,null,null,null,null,null,null,null,null,null,null,null,null,null,null,null,null,null,null,{"$f":"IFERROR(VLOOKUP(G54,Listas!$L$2:$M$42,2,0),\"\")","v":""},null,null,null,null,null,null,null,null,null,null,null,{"$f":"IFERROR(VLOOKUP(G54,Listas!#REF!,2,0),\"\")","v":""},{"$f":"IFERROR(VLOOKUP(#REF!,Listas!$H$2:$I$35,2,0),\"\")","v":""},{"$f":"IFERROR(VLOOKUP(AK54,Listas!$L$2:$M$42,2,0),\"\")","v":""}]
[null,null,null,null,null,null,null,null,null,null,null,null,null,null,null,null,null,null,null,null,null,null,null,null,{"$f":"IFERROR(VLOOKUP(G55,Listas!$L$2:$M$42,2,0),\"\")","v":""},null,null,null,null,null,null,null,null,null,null,null,{"$f":"IFERROR(VLOOKUP(G55,Listas!#REF!,2,0),\"\")","v":""},{"$f":"IFERROR(VLOOKUP(#REF!,Listas!$H$2:$I$35,2,0),\"\")","v":""},{"$f":"IFERROR(VLOOKUP(AK55,Listas!$L$2:$M$42,2,0),\"\")","v":""}]
[null,null,null,null,null,null,null,null,null,null,null,null,null,null,null,null,null,null,null,null,null,null,null,null,{"$f":"IFERROR(VLOOKUP(G56,Listas!$L$2:$M$42,2,0),\"\")","v":""},null,null,null,null,null,null,null,null,null,null,null,{"$f":"IFERROR(VLOOKUP(G56,Listas!#REF!,2,0),\"\")","v":""},{"$f":"IFERROR(VLOOKUP(#REF!,Listas!$H$2:$I$35,2,0),\"\")","v":""},{"$f":"IFERROR(VLOOKUP(AK56,Listas!$L$2:$M$42,2,0),\"\")","v":""}]
[null,null,null,null,null,null,null,null,null,null,null,null,null,null,null,null,null,null,null,null,null,null,null,null,{"$f":"IFERROR(VLOOKUP(G57,Listas!$L$2:$M$42,2,0),\"\")","v":""},null,null,null,null,null,null,null,null,null,null,null,{"$f":"IFERROR(VLOOKUP(G57,Listas!#REF!,2,0),\"\")","v":""},{"$f":"IFERROR(VLOOKUP(#REF!,Listas!$H$2:$I$35,2,0),\"\")","v":""},{"$f":"IFERROR(VLOOKUP(AK57,Listas!$L$2:$M$42,2,0),\"\")","v":""}]
[null,null,null,null,null,null,null,null,null,null,null,null,null,null,null,null,null,null,null,null,null,null,null,null,{"$f":"IFERROR(VLOOKUP(G58,Listas!$L$2:$M$42,2,0),\"\")","v":""},null,null,null,null,null,null,null,null,null,null,null,{"$f":"IFERROR(VLOOKUP(G58,Listas!#REF!,2,0),\"\")","v":""},{"$f":"IFERROR(VLOOKUP(#REF!,Listas!$H$2:$I$35,2,0),\"\")","v":""},{"$f":"IFERROR(VLOOKUP(AK58,Listas!$L$2:$M$42,2,0),\"\")","v":""}]
[null,null,null,null,null,null,null,null,null,null,null,null,null,null,null,null,null,null,null,null,null,null,null,null,{"$f":"IFERROR(VLOOKUP(G59,Listas!$L$2:$M$42,2,0),\"\")","v":""},null,null,null,null,null,null,null,null,null,null,null,{"$f":"IFERROR(VLOOKUP(G59,Listas!#REF!,2,0),\"\")","v":""},{"$f":"IFERROR(VLOOKUP(#REF!,Listas!$H$2:$I$35,2,0),\"\")","v":""},{"$f":"IFERROR(VLOOKUP(AK59,Listas!$L$2:$M$42,2,0),\"\")","v":""}]
[null,null,null,null,null,null,null,null,null,null,null,null,null,null,null,null,null,null,null,null,null,null,null,null,{"$f":"IFERROR(VLOOKUP(G60,Listas!$L$2:$M$42,2,0),\"\")","v":""},null,null,null,null,null,null,null,null,null,null,null,{"$f":"IFERROR(VLOOKUP(G60,Listas!#REF!,2,0),\"\")","v":""},{"$f":"IFERROR(VLOOKUP(#REF!,Listas!$H$2:$I$35,2,0),\"\")","v":""},{"$f":"IFERROR(VLOOKUP(AK60,Listas!$L$2:$M$42,2,0),\"\")","v":""}]
[null,null,null,null,null,null,null,null,null,null,null,null,null,null,null,null,null,null,null,null,null,null,null,null,{"$f":"IFERROR(VLOOKUP(G61,Listas!$L$2:$M$42,2,0),\"\")","v":""},null,null,null,null,null,null,null,null,null,null,null,{"$f":"IFERROR(VLOOKUP(G61,Listas!#REF!,2,0),\"\")","v":""},{"$f":"IFERROR(VLOOKUP(#REF!,Listas!$H$2:$I$35,2,0),\"\")","v":""},{"$f":"IFERROR(VLOOKUP(AK61,Listas!$L$2:$M$42,2,0),\"\")","v":""}]
[null,null,null,null,null,null,null,null,null,null,null,null,null,null,null,null,null,null,null,null,null,null,null,null,{"$f":"IFERROR(VLOOKUP(G62,Listas!$L$2:$M$42,2,0),\"\")","v":""},null,null,null,null,null,null,null,null,null,null,null,{"$f":"IFERROR(VLOOKUP(G62,Listas!#REF!,2,0),\"\")","v":""},{"$f":"IFERROR(VLOOKUP(#REF!,Listas!$H$2:$I$35,2,0),\"\")","v":""},{"$f":"IFERROR(VLOOKUP(AK62,Listas!$L$2:$M$42,2,0),\"\")","v":""}]
[null,null,null,null,null,null,null,null,null,null,null,null,null,null,null,null,null,null,null,null,null,null,null,null,{"$f":"IFERROR(VLOOKUP(G63,Listas!$L$2:$M$42,2,0),\"\")","v":""},null,null,null,null,null,null,null,null,null,null,null,{"$f":"IFERROR(VLOOKUP(G63,Listas!#REF!,2,0),\"\")","v":""},{"$f":"IFERROR(VLOOKUP(#REF!,Listas!$H$2:$I$35,2,0),\"\")","v":""},{"$f":"IFERROR(VLOOKUP(AK63,Listas!$L$2:$M$42,2,0),\"\")","v":""}]
[null,null,null,null,null,null,null,null,null,null,null,null,null,null,null,null,null,null,null,null,null,null,null,null,{"$f":"IFERROR(VLOOKUP(G64,Listas!$L$2:$M$42,2,0),\"\")","v":""},null,null,null,null,null,null,null,null,null,null,null,{"$f":"IFERROR(VLOOKUP(G64,Listas!#REF!,2,0),\"\")","v":""},{"$f":"IFERROR(VLOOKUP(#REF!,Listas!$H$2:$I$35,2,0),\"\")","v":""},{"$f":"IFERROR(VLOOKUP(AK64,Listas!$L$2:$M$42,2,0),\"\")","v":""}]
[null,null,null,null,null,null,null,null,null,null,null,null,null,null,null,null,null,null,null,null,null,null,null,null,{"$f":"IFERROR(VLOOKUP(G65,Listas!$L$2:$M$42,2,0),\"\")","v":""},null,null,null,null,null,null,null,null,null,null,null,{"$f":"IFERROR(VLOOKUP(G65,Listas!#REF!,2,0),\"\")","v":""},{"$f":"IFERROR(VLOOKUP(#REF!,Listas!$H$2:$I$35,2,0),\"\")","v":""},{"$f":"IFERROR(VLOOKUP(AK65,Listas!$L$2:$M$42,2,0),\"\")","v":""}]
[null,null,null,null,null,null,null,null,null,null,null,null,null,null,null,null,null,null,null,null,null,null,null,null,{"$f":"IFERROR(VLOOKUP(G66,Listas!$L$2:$M$42,2,0),\"\")","v":""},null,null,null,null,null,null,null,null,null,null,null,{"$f":"IFERROR(VLOOKUP(G66,Listas!#REF!,2,0),\"\")","v":""},{"$f":"IFERROR(VLOOKUP(#REF!,Listas!$H$2:$I$35,2,0),\"\")","v":""},{"$f":"IFERROR(VLOOKUP(AK66,Listas!$L$2:$M$42,2,0),\"\")","v":""}]
[null,null,null,null,null,null,null,null,null,null,null,null,null,null,null,null,null,null,null,null,null,null,null,null,{"$f":"IFERROR(VLOOKUP(G67,Listas!$L$2:$M$42,2,0),\"\")","v":""},null,null,null,null,null,null,null,null,null,null,null,{"$f":"IFERROR(VLOOKUP(G67,Listas!#REF!,2,0),\"\")","v":""},{"$f":"IFERROR(VLOOKUP(#REF!,Listas!$H$2:$I$35,2,0),\"\")","v":""},{"$f":"IFERROR(VLOOKUP(AK67,Listas!$L$2:$M$42,2,0),\"\")","v":""}]
[null,null,null,null,null,null,null,null,null,null,null,null,null,null,null,null,null,null,null,null,null,null,null,null,{"$f":"IFERROR(VLOOKUP(G68,Listas!$L$2:$M$42,2,0),\"\")","v":""},null,null,null,null,null,null,null,null,null,null,null,{"$f":"IFERROR(VLOOKUP(G68,Listas!#REF!,2,0),\"\")","v":""},{"$f":"IFERROR(VLOOKUP(#REF!,Listas!$H$2:$I$35,2,0),\"\")","v":""},{"$f":"IFERROR(VLOOKUP(AK68,Listas!$L$2:$M$42,2,0),\"\")","v":""}]
[null,null,null,null,null,null,null,null,null,null,null,null,null,null,null,null,null,null,null,null,null,null,null,null,{"$f":"IFERROR(VLOOKUP(G69,Listas!$L$2:$M$42,2,0),\"\")","v":""},null,null,null,null,null,null,null,null,null,null,null,{"$f":"IFERROR(VLOOKUP(G69,Listas!#REF!,2,0),\"\")","v":""},{"$f":"IFERROR(VLOOKUP(#REF!,Listas!$H$2:$I$35,2,0),\"\")","v":""},{"$f":"IFERROR(VLOOKUP(AK69,Listas!$L$2:$M$42,2,0),\"\")","v":""}]
[null,null,null,null,null,null,null,null,null,null,null,null,null,null,null,null,null,null,null,null,null,null,null,null,{"$f":"IFERROR(VLOOKUP(G70,Listas!$L$2:$M$42,2,0),\"\")","v":""},null,null,null,null,null,null,null,null,null,null,null,{"$f":"IFERROR(VLOOKUP(G70,Listas!#REF!,2,0),\"\")","v":""},{"$f":"IFERROR(VLOOKUP(#REF!,Listas!$H$2:$I$35,2,0),\"\")","v":""},{"$f":"IFERROR(VLOOKUP(AK70,Listas!$L$2:$M$42,2,0),\"\")","v":""}]
[null,null,null,null,null,null,null,null,null,null,null,null,null,null,null,null,null,null,null,null,null,null,null,null,{"$f":"IFERROR(VLOOKUP(G71,Listas!$L$2:$M$42,2,0),\"\")","v":""},null,null,null,null,null,null,null,null,null,null,null,{"$f":"IFERROR(VLOOKUP(G71,Listas!#REF!,2,0),\"\")","v":""},{"$f":"IFERROR(VLOOKUP(#REF!,Listas!$H$2:$I$35,2,0),\"\")","v":""},{"$f":"IFERROR(VLOOKUP(AK71,Listas!$L$2:$M$42,2,0),\"\")","v":""}]
[null,null,null,null,null,null,null,null,null,null,null,null,null,null,null,null,null,null,null,null,null,null,null,null,{"$f":"IFERROR(VLOOKUP(G72,Listas!$L$2:$M$42,2,0),\"\")","v":""},null,null,null,null,null,null,null,null,null,null,null,{"$f":"IFERROR(VLOOKUP(G72,Listas!#REF!,2,0),\"\")","v":""},{"$f":"IFERROR(VLOOKUP(#REF!,Listas!$H$2:$I$35,2,0),\"\")","v":""},{"$f":"IFERROR(VLOOKUP(AK72,Listas!$L$2:$M$42,2,0),\"\")","v":""}]
[null,null,null,null,null,null,null,null,null,null,null,null,null,null,null,null,null,null,null,null,null,null,null,null,{"$f":"IFERROR(VLOOKUP(G73,Listas!$L$2:$M$42,2,0),\"\")","v":""},null,null,null,null,null,null,null,null,null,null,null,{"$f":"IFERROR(VLOOKUP(G73,Listas!#REF!,2,0),\"\")","v":""},{"$f":"IFERROR(VLOOKUP(#REF!,Listas!$H$2:$I$35,2,0),\"\")","v":""},{"$f":"IFERROR(VLOOKUP(AK73,Listas!$L$2:$M$42,2,0),\"\")","v":""}]
[null,null,null,null,null,null,null,null,null,null,null,null,null,null,null,null,null,null,null,null,null,null,null,null,{"$f":"IFERROR(VLOOKUP(G74,Listas!$L$2:$M$42,2,0),\"\")","v":""},null,null,null,null,null,null,null,null,null,null,null,{"$f":"IFERROR(VLOOKUP(G74,Listas!#REF!,2,0),\"\")","v":""},{"$f":"IFERROR(VLOOKUP(#REF!,Listas!$H$2:$I$35,2,0),\"\")","v":""},{"$f":"IFERROR(VLOOKUP(AK74,Listas!$L$2:$M$42,2,0),\"\")","v":""}]
[null,null,null,null,null,null,null,null,null,null,null,null,null,null,null,null,null,null,null,null,null,null,null,null,{"$f":"IFERROR(VLOOKUP(G75,Listas!$L$2:$M$42,2,0),\"\")","v":""},null,null,null,null,null,null,null,null,null,null,null,{"$f":"IFERROR(VLOOKUP(G75,Listas!#REF!,2,0),\"\")","v":""},{"$f":"IFERROR(VLOOKUP(#REF!,Listas!$H$2:$I$35,2,0),\"\")","v":""},{"$f":"IFERROR(VLOOKUP(AK75,Listas!$L$2:$M$42,2,0),\"\")","v":""}]
[null,null,null,null,null,null,null,null,null,null,null,null,null,null,null,null,null,null,null,null,null,null,null,null,{"$f":"IFERROR(VLOOKUP(G76,Listas!$L$2:$M$42,2,0),\"\")","v":""},null,null,null,null,null,null,null,null,null,null,null,{"$f":"IFERROR(VLOOKUP(G76,Listas!#REF!,2,0),\"\")","v":""},{"$f":"IFERROR(VLOOKUP(#REF!,Listas!$H$2:$I$35,2,0),\"\")","v":""},{"$f":"IFERROR(VLOOKUP(AK76,Listas!$L$2:$M$42,2,0),\"\")","v":""}]
[null,null,null,null,null,null,null,null,null,null,null,null,null,null,null,null,null,null,null,null,null,null,null,null,{"$f":"IFERROR(VLOOKUP(G77,Listas!$L$2:$M$42,2,0),\"\")","v":""},null,null,null,null,null,null,null,null,null,null,null,{"$f":"IFERROR(VLOOKUP(G77,Listas!#REF!,2,0),\"\")","v":""},{"$f":"IFERROR(VLOOKUP(#REF!,Listas!$H$2:$I$35,2,0),\"\")","v":""},{"$f":"IFERROR(VLOOKUP(AK77,Listas!$L$2:$M$42,2,0),\"\")","v":""}]
[null,null,null,null,null,null,null,null,null,null,null,null,null,null,null,null,null,null,null,null,null,null,null,null,{"$f":"IFERROR(VLOOKUP(G78,Listas!$L$2:$M$42,2,0),\"\")","v":""},null,null,null,null,null,null,null,null,null,null,null,{"$f":"IFERROR(VLOOKUP(G78,Listas!#REF!,2,0),\"\")","v":""},{"$f":"IFERROR(VLOOKUP(#REF!,Listas!$H$2:$I$35,2,0),\"\")","v":""},{"$f":"IFERROR(VLOOKUP(AK78,Listas!$L$2:$M$42,2,0),\"\")","v":""}]
[null,null,null,null,null,null,null,null,null,null,null,null,null,null,null,null,null,null,null,null,null,null,null,null,{"$f":"IFERROR(VLOOKUP(G79,Listas!$L$2:$M$42,2,0),\"\")","v":""},null,null,null,null,null,null,null,null,null,null,null,{"$f":"IFERROR(VLOOKUP(G79,Listas!#REF!,2,0),\"\")","v":""},{"$f":"IFERROR(VLOOKUP(#REF!,Listas!$H$2:$I$35,2,0),\"\")","v":""},{"$f":"IFERROR(VLOOKUP(AK79,Listas!$L$2:$M$42,2,0),\"\")","v":""}]
[null,null,null,null,null,null,null,null,null,null,null,null,null,null,null,null,null,null,null,null,null,null,null,null,{"$f":"IFERROR(VLOOKUP(G80,Listas!$L$2:$M$42,2,0),\"\")","v":""},null,null,null,null,null,null,null,null,null,null,null,{"$f":"IFERROR(VLOOKUP(G80,Listas!#REF!,2,0),\"\")","v":""},{"$f":"IFERROR(VLOOKUP(#REF!,Listas!$H$2:$I$35,2,0),\"\")","v":""},{"$f":"IFERROR(VLOOKUP(AK80,Listas!$L$2:$M$42,2,0),\"\")","v":""}]
[null,null,null,null,null,null,null,null,null,null,null,null,null,null,null,null,null,null,null,null,null,null,null,null,{"$f":"IFERROR(VLOOKUP(G81,Listas!$L$2:$M$42,2,0),\"\")","v":""},null,null,null,null,null,null,null,null,null,null,null,{"$f":"IFERROR(VLOOKUP(G81,Listas!#REF!,2,0),\"\")","v":""},{"$f":"IFERROR(VLOOKUP(#REF!,Listas!$H$2:$I$35,2,0),\"\")","v":""},{"$f":"IFERROR(VLOOKUP(AK81,Listas!$L$2:$M$42,2,0),\"\")","v":""}]
[null,null,null,null,null,null,null,null,null,null,null,null,null,null,null,null,null,null,null,null,null,null,null,null,{"$f":"IFERROR(VLOOKUP(G82,Listas!$L$2:$M$42,2,0),\"\")","v":""},null,null,null,null,null,null,null,null,null,null,null,{"$f":"IFERROR(VLOOKUP(G82,Listas!#REF!,2,0),\"\")","v":""},{"$f":"IFERROR(VLOOKUP(#REF!,Listas!$H$2:$I$35,2,0),\"\")","v":""},{"$f":"IFERROR(VLOOKUP(AK82,Listas!$L$2:$M$42,2,0),\"\")","v":""}]
[null,null,null,null,null,null,null,null,null,null,null,null,null,null,null,null,null,null,null,null,null,null,null,null,{"$f":"IFERROR(VLOOKUP(G83,Listas!$L$2:$M$42,2,0),\"\")","v":""},null,null,null,null,null,null,null,null,null,null,null,{"$f":"IFERROR(VLOOKUP(G83,Listas!#REF!,2,0),\"\")","v":""},{"$f":"IFERROR(VLOOKUP(#REF!,Listas!$H$2:$I$35,2,0),\"\")","v":""},{"$f":"IFERROR(VLOOKUP(AK83,Listas!$L$2:$M$42,2,0),\"\")","v":""}]
[null,null,null,null,null,null,null,null,null,null,null,null,null,null,null,null,null,null,null,null,null,null,null,null,{"$f":"IFERROR(VLOOKUP(G84,Listas!$L$2:$M$42,2,0),\"\")","v":""},null,null,null,null,null,null,null,null,null,null,null,{"$f":"IFERROR(VLOOKUP(G84,Listas!#REF!,2,0),\"\")","v":""},{"$f":"IFERROR(VLOOKUP(#REF!,Listas!$H$2:$I$35,2,0),\"\")","v":""},{"$f":"IFERROR(VLOOKUP(AK84,Listas!$L$2:$M$42,2,0),\"\")","v":""}]
[null,null,null,null,null,null,null,null,null,null,null,null,null,null,null,null,null,null,null,null,null,null,null,null,{"$f":"IFERROR(VLOOKUP(G85,Listas!$L$2:$M$42,2,0),\"\")","v":""},null,null,null,null,null,null,null,null,null,null,null,{"$f":"IFERROR(VLOOKUP(G85,Listas!#REF!,2,0),\"\")","v":""},{"$f":"IFERROR(VLOOKUP(#REF!,Listas!$H$2:$I$35,2,0),\"\")","v":""},{"$f":"IFERROR(VLOOKUP(AK85,Listas!$L$2:$M$42,2,0),\"\")","v":""}]
[null,null,null,null,null,null,null,null,null,null,null,null,null,null,null,null,null,null,null,null,null,null,null,null,{"$f":"IFERROR(VLOOKUP(G86,Listas!$L$2:$M$42,2,0),\"\")","v":""},null,null,null,null,null,null,null,null,null,null,null,{"$f":"IFERROR(VLOOKUP(G86,Listas!#REF!,2,0),\"\")","v":""},{"$f":"IFERROR(VLOOKUP(#REF!,Listas!$H$2:$I$35,2,0),\"\")","v":""},{"$f":"IFERROR(VLOOKUP(AK86,Listas!$L$2:$M$42,2,0),\"\")","v":""}]
[null,null,null,null,null,null,null,null,null,null,null,null,null,null,null,null,null,null,null,null,null,null,null,null,{"$f":"IFERROR(VLOOKUP(G87,Listas!$L$2:$M$42,2,0),\"\")","v":""},null,null,null,null,null,null,null,null,null,null,null,{"$f":"IFERROR(VLOOKUP(G87,Listas!#REF!,2,0),\"\")","v":""},{"$f":"IFERROR(VLOOKUP(#REF!,Listas!$H$2:$I$35,2,0),\"\")","v":""},{"$f":"IFERROR(VLOOKUP(AK87,Listas!$L$2:$M$42,2,0),\"\")","v":""}]
[null,null,null,null,null,null,null,null,null,null,null,null,null,null,null,null,null,null,null,null,null,null,null,null,{"$f":"IFERROR(VLOOKUP(G88,Listas!$L$2:$M$42,2,0),\"\")","v":""},null,null,null,null,null,null,null,null,null,null,null,{"$f":"IFERROR(VLOOKUP(G88,Listas!#REF!,2,0),\"\")","v":""},{"$f":"IFERROR(VLOOKUP(#REF!,Listas!$H$2:$I$35,2,0),\"\")","v":""},{"$f":"IFERROR(VLOOKUP(AK88,Listas!$L$2:$M$42,2,0),\"\")","v":""}]
[null,null,null,null,null,null,null,null,null,null,null,null,null,null,null,null,null,null,null,null,null,null,null,null,{"$f":"IFERROR(VLOOKUP(G89,Listas!$L$2:$M$42,2,0),\"\")","v":""},null,null,null,null,null,null,null,null,null,null,null,{"$f":"IFERROR(VLOOKUP(G89,Listas!#REF!,2,0),\"\")","v":""},{"$f":"IFERROR(VLOOKUP(#REF!,Listas!$H$2:$I$35,2,0),\"\")","v":""},{"$f":"IFERROR(VLOOKUP(AK89,Listas!$L$2:$M$42,2,0),\"\")","v":""}]
[null,null,null,null,null,null,null,null,null,null,null,null,null,null,null,null,null,null,null,null,null,null,null,null,{"$f":"IFERROR(VLOOKUP(G90,Listas!$L$2:$M$42,2,0),\"\")","v":""},null,null,null,null,null,null,null,null,null,null,null,{"$f":"IFERROR(VLOOKUP(G90,Listas!#REF!,2,0),\"\")","v":""},{"$f":"IFERROR(VLOOKUP(#REF!,Listas!$H$2:$I$35,2,0),\"\")","v":""},{"$f":"IFERROR(VLOOKUP(AK90,Listas!$L$2:$M$42,2,0),\"\")","v":""}]
[null,null,null,null,null,null,null,null,null,null,null,null,null,null,null,null,null,null,null,null,null,null,null,null,{"$f":"IFERROR(VLOOKUP(G91,Listas!$L$2:$M$42,2,0),\"\")","v":""},null,null,null,null,null,null,null,null,null,null,null,{"$f":"IFERROR(VLOOKUP(G91,Listas!#REF!,2,0),\"\")","v":""},{"$f":"IFERROR(VLOOKUP(#REF!,Listas!$H$2:$I$35,2,0),\"\")","v":""},{"$f":"IFERROR(VLOOKUP(AK91,Listas!$L$2:$M$42,2,0),\"\")","v":""}]
[null,null,null,null,null,null,null,null,null,null,null,null,null,null,null,null,null,null,null,null,null,null,null,null,{"$f":"IFERROR(VLOOKUP(G92,Listas!$L$2:$M$42,2,0),\"\")","v":""},null,null,null,null,null,null,null,null,null,null,null,{"$f":"IFERROR(VLOOKUP(G92,Listas!#REF!,2,0),\"\")","v":""},{"$f":"IFERROR(VLOOKUP(#REF!,Listas!$H$2:$I$35,2,0),\"\")","v":""},{"$f":"IFERROR(VLOOKUP(AK92,Listas!$L$2:$M$42,2,0),\"\")","v":""}]
[null,null,null,null,null,null,null,null,null,null,null,null,null,null,null,null,null,null,null,null,null,null,null,null,{"$f":"IFERROR(VLOOKUP(G93,Listas!$L$2:$M$42,2,0),\"\")","v":""},null,null,null,null,null,null,null,null,null,null,null,{"$f":"IFERROR(VLOOKUP(G93,Listas!#REF!,2,0),\"\")","v":""},{"$f":"IFERROR(VLOOKUP(#REF!,Listas!$H$2:$I$35,2,0),\"\")","v":""},{"$f":"IFERROR(VLOOKUP(AK93,Listas!$L$2:$M$42,2,0),\"\")","v":""}]
[null,null,null,null,null,null,null,null,null,null,null,null,null,null,null,null,null,null,null,null,null,null,null,null,{"$f":"IFERROR(VLOOKUP(G94,Listas!$L$2:$M$42,2,0),\"\")","v":""},null,null,null,null,null,null,null,null,null,null,null,{"$f":"IFERROR(VLOOKUP(G94,Listas!#REF!,2,0),\"\")","v":""},{"$f":"IFERROR(VLOOKUP(#REF!,Listas!$H$2:$I$35,2,0),\"\")","v":""},{"$f":"IFERROR(VLOOKUP(AK94,Listas!$L$2:$M$42,2,0),\"\")","v":""}]
[null,null,null,null,null,null,null,null,null,null,null,null,null,null,null,null,null,null,null,null,null,null,null,null,{"$f":"IFERROR(VLOOKUP(G95,Listas!$L$2:$M$42,2,0),\"\")","v":""},null,null,null,null,null,null,null,null,null,null,null,{"$f":"IFERROR(VLOOKUP(G95,Listas!#REF!,2,0),\"\")","v":""},{"$f":"IFERROR(VLOOKUP(#REF!,Listas!$H$2:$I$35,2,0),\"\")","v":""},{"$f":"IFERROR(VLOOKUP(AK95,Listas!$L$2:$M$42,2,0),\"\")","v":""}]
[null,null,null,null,null,null,null,null,null,null,null,null,null,null,null,null,null,null,null,null,null,null,null,null,{"$f":"IFERROR(VLOOKUP(G96,Listas!$L$2:$M$42,2,0),\"\")","v":""},null,null,null,null,null,null,null,null,null,null,null,{"$f":"IFERROR(VLOOKUP(G96,Listas!#REF!,2,0),\"\")","v":""},{"$f":"IFERROR(VLOOKUP(#REF!,Listas!$H$2:$I$35,2,0),\"\")","v":""},{"$f":"IFERROR(VLOOKUP(AK96,Listas!$L$2:$M$42,2,0),\"\")","v":""}]
[null,null,null,null,null,null,null,null,null,null,null,null,null,null,null,null,null,null,null,null,null,null,null,null,{"$f":"IFERROR(VLOOKUP(G97,Listas!$L$2:$M$42,2,0),\"\")","v":""},null,null,null,null,null,null,null,null,null,null,null,{"$f":"IFERROR(VLOOKUP(G97,Listas!#REF!,2,0),\"\")","v":""},{"$f":"IFERROR(VLOOKUP(#REF!,Listas!$H$2:$I$35,2,0),\"\")","v":""},{"$f":"IFERROR(VLOOKUP(AK97,Listas!$L$2:$M$42,2,0),\"\")","v":""}]
[null,null,null,null,null,null,null,null,null,null,null,null,null,null,null,null,null,null,null,null,null,null,null,null,{"$f":"IFERROR(VLOOKUP(G98,Listas!$L$2:$M$42,2,0),\"\")","v":""},null,null,null,null,null,null,null,null,null,null,null,{"$f":"IFERROR(VLOOKUP(G98,Listas!#REF!,2,0),\"\")","v":""},{"$f":"IFERROR(VLOOKUP(#REF!,Listas!$H$2:$I$35,2,0),\"\")","v":""},{"$f":"IFERROR(VLOOKUP(AK98,Listas!$L$2:$M$42,2,0),\"\")","v":""}]
[null,null,null,null,null,null,null,null,null,null,null,null,null,null,null,null,null,null,null,null,null,null,null,null,{"$f":"IFERROR(VLOOKUP(G99,Listas!$L$2:$M$42,2,0),\"\")","v":""},null,null,null,null,null,null,null,null,null,null,null,{"$f":"IFERROR(VLOOKUP(G99,Listas!#REF!,2,0),\"\")","v":""},{"$f":"IFERROR(VLOOKUP(#REF!,Listas!$H$2:$I$35,2,0),\"\")","v":""},{"$f":"IFERROR(VLOOKUP(AK99,Listas!$L$2:$M$42,2,0),\"\")","v":""}]
[null,null,null,null,null,null,null,null,null,null,null,null,null,null,null,null,null,null,null,null,null,null,null,null,{"$f":"IFERROR(VLOOKUP(G100,Listas!$L$2:$M$42,2,0),\"\")","v":""},null,null,null,null,null,null,null,null,null,null,null,{"$f":"IFERROR(VLOOKUP(G100,Listas!#REF!,2,0),\"\")","v":""},{"$f":"IFERROR(VLOOKUP(#REF!,Listas!$H$2:$I$35,2,0),\"\")","v":""},{"$f":"IFERROR(VLOOKUP(AK100,Listas!$L$2:$M$42,2,0),\"\")","v":""}]
[null,null,null,null,null,null,null,null,null,null,null,null,null,null,null,null,null,null,null,null,null,null,null,null,{"$f":"IFERROR(VLOOKUP(G101,Listas!$L$2:$M$42,2,0),\"\")","v":""},null,null,null,null,null,null,null,null,null,null,null,{"$f":"IFERROR(VLOOKUP(G101,Listas!#REF!,2,0),\"\")","v":""},{"$f":"IFERROR(VLOOKUP(#REF!,Listas!$H$2:$I$35,2,0),\"\")","v":""},{"$f":"IFERROR(VLOOKUP(AK101,Listas!$L$2:$M$42,2,0),\"\")","v":""}]
[null,null,null,null,null,null,null,null,null,null,null,null,null,null,null,null,null,null,null,null,null,null,null,null,{"$f":"IFERROR(VLOOKUP(G102,Listas!$L$2:$M$42,2,0),\"\")","v":""},null,null,null,null,null,null,null,null,null,null,null,{"$f":"IFERROR(VLOOKUP(G102,Listas!#REF!,2,0),\"\")","v":""},{"$f":"IFERROR(VLOOKUP(#REF!,Listas!$H$2:$I$35,2,0),\"\")","v":""},{"$f":"IFERROR(VLOOKUP(AK102,Listas!$L$2:$M$42,2,0),\"\")","v":""}]
[null,null,null,null,null,null,null,null,null,null,null,null,null,null,null,null,null,null,null,null,null,null,null,null,{"$f":"IFERROR(VLOOKUP(G103,Listas!$L$2:$M$42,2,0),\"\")","v":""},null,null,null,null,null,null,null,null,null,null,null,{"$f":"IFERROR(VLOOKUP(G103,Listas!#REF!,2,0),\"\")","v":""},{"$f":"IFERROR(VLOOKUP(#REF!,Listas!$H$2:$I$35,2,0),\"\")","v":""},{"$f":"IFERROR(VLOOKUP(AK103,Listas!$L$2:$M$42,2,0),\"\")","v":""}]
[null,null,null,null,null,null,null,null,null,null,null,null,null,null,null,null,null,null,null,null,null,null,null,null,{"$f":"IFERROR(VLOOKUP(G104,Listas!$L$2:$M$42,2,0),\"\")","v":""},null,null,null,null,null,null,null,null,null,null,null,{"$f":"IFERROR(VLOOKUP(G104,Listas!#REF!,2,0),\"\")","v":""},{"$f":"IFERROR(VLOOKUP(#REF!,Listas!$H$2:$I$35,2,0),\"\")","v":""},{"$f":"IFERROR(VLOOKUP(AK104,Listas!$L$2:$M$42,2,0),\"\")","v":""}]
[null,null,null,null,null,null,null,null,null,null,null,null,null,null,null,null,null,null,null,null,null,null,null,null,{"$f":"IFERROR(VLOOKUP(G105,Listas!$L$2:$M$42,2,0),\"\")","v":""},null,null,null,null,null,null,null,null,null,null,null,{"$f":"IFERROR(VLOOKUP(G105,Listas!#REF!,2,0),\"\")","v":""},{"$f":"IFERROR(VLOOKUP(#REF!,Listas!$H$2:$I$35,2,0),\"\")","v":""},{"$f":"IFERROR(VLOOKUP(AK105,Listas!$L$2:$M$42,2,0),\"\")","v":""}]
[null,null,null,null,null,null,null,null,null,null,null,null,null,null,null,null,null,null,null,null,null,null,null,null,{"$f":"IFERROR(VLOOKUP(G106,Listas!$L$2:$M$42,2,0),\"\")","v":""},null,null,null,null,null,null,null,null,null,null,null,{"$f":"IFERROR(VLOOKUP(G106,Listas!#REF!,2,0),\"\")","v":""},{"$f":"IFERROR(VLOOKUP(#REF!,Listas!$H$2:$I$35,2,0),\"\")","v":""},{"$f":"IFERROR(VLOOKUP(AK106,Listas!$L$2:$M$42,2,0),\"\")","v":""}]
[null,null,null,null,null,null,null,null,null,null,null,null,null,null,null,null,null,null,null,null,null,null,null,null,{"$f":"IFERROR(VLOOKUP(G107,Listas!$L$2:$M$42,2,0),\"\")","v":""},null,null,null,null,null,null,null,null,null,null,null,{"$f":"IFERROR(VLOOKUP(G107,Listas!#REF!,2,0),\"\")","v":""},{"$f":"IFERROR(VLOOKUP(#REF!,Listas!$H$2:$I$35,2,0),\"\")","v":""},{"$f":"IFERROR(VLOOKUP(AK107,Listas!$L$2:$M$42,2,0),\"\")","v":""}]
[null,null,null,null,null,null,null,null,null,null,null,null,null,null,null,null,null,null,null,null,null,null,null,null,{"$f":"IFERROR(VLOOKUP(G108,Listas!$L$2:$M$42,2,0),\"\")","v":""},null,null,null,null,null,null,null,null,null,null,null,{"$f":"IFERROR(VLOOKUP(G108,Listas!#REF!,2,0),\"\")","v":""},{"$f":"IFERROR(VLOOKUP(#REF!,Listas!$H$2:$I$35,2,0),\"\")","v":""},{"$f":"IFERROR(VLOOKUP(AK108,Listas!$L$2:$M$42,2,0),\"\")","v":""}]
[null,null,null,null,null,null,null,null,null,null,null,null,null,null,null,null,null,null,null,null,null,null,null,null,{"$f":"IFERROR(VLOOKUP(G109,Listas!$L$2:$M$42,2,0),\"\")","v":""},null,null,null,null,null,null,null,null,null,null,null,{"$f":"IFERROR(VLOOKUP(G109,Listas!#REF!,2,0),\"\")","v":""},{"$f":"IFERROR(VLOOKUP(#REF!,Listas!$H$2:$I$35,2,0),\"\")","v":""},{"$f":"IFERROR(VLOOKUP(AK109,Listas!$L$2:$M$42,2,0),\"\")","v":""}]
[null,null,null,null,null,null,null,null,null,null,null,null,null,null,null,null,null,null,null,null,null,null,null,null,{"$f":"IFERROR(VLOOKUP(G110,Listas!$L$2:$M$42,2,0),\"\")","v":""},null,null,null,null,null,null,null,null,null,null,null,{"$f":"IFERROR(VLOOKUP(G110,Listas!#REF!,2,0),\"\")","v":""},{"$f":"IFERROR(VLOOKUP(#REF!,Listas!$H$2:$I$35,2,0),\"\")","v":""},{"$f":"IFERROR(VLOOKUP(AK110,Listas!$L$2:$M$42,2,0),\"\")","v":""}]
[null,null,null,null,null,null,null,null,null,null,null,null,null,null,null,null,null,null,null,null,null,null,null,null,{"$f":"IFERROR(VLOOKUP(G111,Listas!$L$2:$M$42,2,0),\"\")","v":""},null,null,null,null,null,null,null,null,null,null,null,{"$f":"IFERROR(VLOOKUP(G111,Listas!#REF!,2,0),\"\")","v":""},{"$f":"IFERROR(VLOOKUP(#REF!,Listas!$H$2:$I$35,2,0),\"\")","v":""},{"$f":"IFERROR(VLOOKUP(AK111,Listas!$L$2:$M$42,2,0),\"\")","v":""}]
[null,null,null,null,null,null,null,null,null,null,null,null,null,null,null,null,null,null,null,null,null,null,null,null,{"$f":"IFERROR(VLOOKUP(G112,Listas!$L$2:$M$42,2,0),\"\")","v":""},null,null,null,null,null,null,null,null,null,null,null,{"$f":"IFERROR(VLOOKUP(G112,Listas!#REF!,2,0),\"\")","v":""},{"$f":"IFERROR(VLOOKUP(#REF!,Listas!$H$2:$I$35,2,0),\"\")","v":""},{"$f":"IFERROR(VLOOKUP(AK112,Listas!$L$2:$M$42,2,0),\"\")","v":""}]
[null,null,null,null,null,null,null,null,null,null,null,null,null,null,null,null,null,null,null,null,null,null,null,null,{"$f":"IFERROR(VLOOKUP(G113,Listas!$L$2:$M$42,2,0),\"\")","v":""},null,null,null,null,null,null,null,null,null,null,null,{"$f":"IFERROR(VLOOKUP(G113,Listas!#REF!,2,0),\"\")","v":""},{"$f":"IFERROR(VLOOKUP(#REF!,Listas!$H$2:$I$35,2,0),\"\")","v":""},{"$f":"IFERROR(VLOOKUP(AK113,Listas!$L$2:$M$42,2,0),\"\")","v":""}]
[null,null,null,null,null,null,null,null,null,null,null,null,null,null,null,null,null,null,null,null,null,null,null,null,{"$f":"IFERROR(VLOOKUP(G114,Listas!$L$2:$M$42,2,0),\"\")","v":""},null,null,null,null,null,null,null,null,null,null,null,{"$f":"IFERROR(VLOOKUP(G114,Listas!#REF!,2,0),\"\")","v":""},{"$f":"IFERROR(VLOOKUP(#REF!,Listas!$H$2:$I$35,2,0),\"\")","v":""},{"$f":"IFERROR(VLOOKUP(AK114,Listas!$L$2:$M$42,2,0),\"\")","v":""}]
[null,null,null,null,null,null,null,null,null,null,null,null,null,null,null,null,null,null,null,null,null,null,null,null,{"$f":"IFERROR(VLOOKUP(G115,Listas!$L$2:$M$42,2,0),\"\")","v":""},null,null,null,null,null,null,null,null,null,null,null,{"$f":"IFERROR(VLOOKUP(G115,Listas!#REF!,2,0),\"\")","v":""},{"$f":"IFERROR(VLOOKUP(#REF!,Listas!$H$2:$I$35,2,0),\"\")","v":""},{"$f":"IFERROR(VLOOKUP(AK115,Listas!$L$2:$M$42,2,0),\"\")","v":""}]
[null,null,null,null,null,null,null,null,null,null,null,null,null,null,null,null,null,null,null,null,null,null,null,null,{"$f":"IFERROR(VLOOKUP(G116,Listas!$L$2:$M$42,2,0),\"\")","v":""},null,null,null,null,null,null,null,null,null,null,null,{"$f":"IFERROR(VLOOKUP(G116,Listas!#REF!,2,0),\"\")","v":""},{"$f":"IFERROR(VLOOKUP(#REF!,Listas!$H$2:$I$35,2,0),\"\")","v":""},{"$f":"IFERROR(VLOOKUP(AK116,Listas!$L$2:$M$42,2,0),\"\")","v":""}]
[null,null,null,null,null,null,null,null,null,null,null,null,null,null,null,null,null,null,null,null,null,null,null,null,{"$f":"IFERROR(VLOOKUP(G117,Listas!$L$2:$M$42,2,0),\"\")","v":""},null,null,null,null,null,null,null,null,null,null,null,{"$f":"IFERROR(VLOOKUP(G117,Listas!#REF!,2,0),\"\")","v":""},{"$f":"IFERROR(VLOOKUP(#REF!,Listas!$H$2:$I$35,2,0),\"\")","v":""},{"$f":"IFERROR(VLOOKUP(AK117,Listas!$L$2:$M$42,2,0),\"\")","v":""}]
[null,null,null,null,null,null,null,null,null,null,null,null,null,null,null,null,null,null,null,null,null,null,null,null,{"$f":"IFERROR(VLOOKUP(G118,Listas!$L$2:$M$42,2,0),\"\")","v":""},null,null,null,null,null,null,null,null,null,null,null,{"$f":"IFERROR(VLOOKUP(G118,Listas!#REF!,2,0),\"\")","v":""},{"$f":"IFERROR(VLOOKUP(#REF!,Listas!$H$2:$I$35,2,0),\"\")","v":""},{"$f":"IFERROR(VLOOKUP(AK118,Listas!$L$2:$M$42,2,0),\"\")","v":""}]
[null,null,null,null,null,null,null,null,null,null,null,null,null,null,null,null,null,null,null,null,null,null,null,null,{"$f":"IFERROR(VLOOKUP(G119,Listas!$L$2:$M$42,2,0),\"\")","v":""},null,null,null,null,null,null,null,null,null,null,null,{"$f":"IFERROR(VLOOKUP(G119,Listas!#REF!,2,0),\"\")","v":""},{"$f":"IFERROR(VLOOKUP(#REF!,Listas!$H$2:$I$35,2,0),\"\")","v":""},{"$f":"IFERROR(VLOOKUP(AK119,Listas!$L$2:$M$42,2,0),\"\")","v":""}]
[null,"Antes de imprimir este documento… piense en el medio ambiente!  \nCualquier copia impresa de este documento se considera como COPIA NO CONTROLADA.\nLOS DATOS PROPORCIONADOS SERÁN TRATADOS DE ACUERDO A LA POLÌTICA DE TRATAMIENTO DE DATOS PERSONALES DEL ICBF Y A LA LEY 1581 DE 2012"]

{"sheet":"Matriz solicitudes","index":2,"n_rows":44,"n_cols":5,"rows_kept":44,"cut":false,"hidden":false,"merged":[[31,1,31,4],[27,4,28,4],[29,4,30,4],[26,1,26,4],[27,2,27,3],[28,2,28,3],[29,2,29,3],[30,2,30,3],[17,2,17,3],[18,2,18,3],[20,1,20,4],[21,2,21,3],[17,4,19,4],[21,4,25,4],[22,2,22,3],[23,2,23,3],[24,2,24,3],[25,2,25,3],[19,2,19,3],[12,1,12,4],[13,2,13,3],[15,2,15,3],[16,1,16,4],[13,4,15,4],[14,2,14,3],[7,2,7,3],[8,2,8,3],[9,2,9,3],[10,2,10,3],[0,1,2,1],[0,2,2,2],[2,3,2,4],[4,2,4,3],[5,1,5,4],[6,2,6,3],[6,4,11,4],[11,2,11,3],[43,1,43,12],[32,2,32,3],[33,2,33,3],[34,2,34,3],[36,2,36,3],[35,2,35,3],[40,2,40,3],[37,2,37,3],[38,2,38,3],[39,2,39,3],[41,2,41,3]]}
[null,null,"PROCESO\n GESTIÓN DE TECNOLOGÍAS E INFORMACIÓN \n\nFORMATO DE SOLICITUD DE SERVICIOS DE TECNOLOGÍA","F1.P2.GTI","2026-05-07"]
[null,null,null,"Versión 18","Página 3 de 3"]
[null,null,null,"Clasificación de la información: \nClasificada"]
[]
[null,"Solicitudes","Descripción ",null,"Quien puede realizar la solicitud"]
[null,"Cuentas de Red"]
[null,"Creación cuenta de red y correo","Cuando el usuario es nuevo, ingresa a laborar en el ICBF.",null,"Solicitud debe ser realizada por el G58, Director(a), Subdirector(a) o Jefe de Oficina o Coordinador(a). "]
[null,"Actualizar información","Actualizar información de funcionarios (área, ubicación, cargo etc.)."]
[null,"Activación de cuentas por renovación de contrato","Los contratistas de ICBF cuentan con fecha fin de contrato, la cuenta se desactiva por tanto si renuevan contrato se solicita activación de la cuenta."]
[null,"Activación de cuentas por vacaciones / licencias","Los funcionarios al tomar su periodo de vacaciones o tener una licencia, la cuenta se desactiva por solicitud del área de Gestión Humana, por tanto al volver se debe solicitar activación."]
[null,"Desactivación de cuentas por finalización de contrato","Cuando se finaliza contrato de funcionario ICBF se solicita desactivar cuenta de red por parte de G58."]
[null,"Desactivación de cuentas por vacaciones / licencias","Los funcionarios al tomar su periodo de vacaciones o tener una licencia, se solicita desactivar por parte del área de Gestión Humana."]
[null,"Listas de distribución"]
[null,"Crear listas de distribución","Se solicita para envío masivo de correos a lista de funcionarios específicos. Se crean listas con mínimo 30 colaboradores.",null,"Solicitud debe ser realizada por el G58, Director(a), Subdirector(a), Jefe de Oficina,  por el Ingeniero Regional o Coordinador(a) ."]
[null,"Actualizar listas de distribución","En el momento que se necesita retirar o agregar un funcionario a la lista."]
[null,"Permisos listas de distribución","Permiso para el envío de correo a una lista especifica."]
[null,"Carpetas SharePoint"]
[null,"Creación de sitio SharePoint","Se solicita creación de sitio cuando se tiene la necesidad de almacenar y compartir la información con otros funcionarios de ICBF.",null," Solicitud debe ser realizada por el Director(a), Subdirector(a), Jefe de Oficina,  por el ingeniero regional o o Coordinador(a)."]
[null,"Eliminación de sitio SharePoint","En caso de no utilizar o ya no ser necesaria la carpeta se solicita eliminar."]
[null,"Consulta NAS / FileServer","Consultar repositorio Antiguo NAS/FileServer"]
[null,"VPN"]
[null,"Crear","Cuando el funcionario necesita acceso a red de ICBF desde una ubicación remota. Para esta solicitud se debe indicar la categoría de acuerdo con el Instructivo para Gestión de Solicitudes VPN, publicado en Portal Web. https://www.icbf.gov.co/estrategico/gestion-de-tecnologia-e-informacion/tecnologia. Es necesario incluir la justificación de la necesidad y debe mencionar a que aplicativos se requieren conectar.",null,"Solicitud debe ser realizada por el Director(a), Subdirector(a) , Jefe de Oficina con su justificación o Coordinador(a)."]
[null,"Modificar","Solicitud modificar permisos en la VPN."]
[null,"Eliminar","En caso de no utilizar o ya no ser necesaria la cuenta VPN se solicita eliminar."]
[null,"Activar","Solicitud de activar cuenta en el momento que regresa de un periodo de vacaciones o licencia.Es necesario incluir la justificación de la necesidad y debe mencionar a que aplicativos se requieren conectar."]
[null,"Desactivar","Cuando se solicita por un tiempo específico ejemplo vacaciones o licencia."]
[null,"Telefonía"]
[null,"Extensión telefónica (VoIP)","Solicitud de extensión telefónica para ingreso y salida de llamadas.",null,"Solicitud debe ser realizada por el Director(a), Subdirector(a), Jefe de Oficina,  G58 cuando solicita la creación de cuenta de red, Coordinador(a) o"]
[null,"Clave telefónica (VoIP)","Asignación de clave para llamadas a celular y/o larga distancia."]
[null,"Cambio de nombre (VoIP)","Cambio de nombre IP cuando es asignada a un usuario diferente al que tenía inicialmente.",null,"Solicitud debe ser realizada por el usuario"]
[null,"Actualizar extensión en tarjeta de contacto","Al realizar cambio de extensión se debe solicitar actualizar en tarjeta de contacto la cual es visible para otros funcionarios de ICBF."]
[null,"Servicios Adicionales "]
[null,"Permisos internet","Solicitud de acceso a páginas específicas. (sujeto a aprobación por parte de seguridad)",null,"Solicitud debe ser realizada por Director(a)/Subdirector(a), Jefe de oficina o o Coordinador(a)."]
[null,"Buzón compartido","Solo buzón para envío y recepción de correo enlazado o compartido a correo ICBF.",null,"Solicitud debe ser realizada por Director(a)/Subdirector(a), Jefe de oficina o o Coordinador(a)."]
[null,"Permisos sobre buzón","Solo buzón para envío y recepción de correo enlazado o compartido a correo ICBF.",null,"Solicitud debe ser realizada por Director(a)/Subdirector(a), Jefe de oficina o o Coordinador(a)."]
[null,"Cuenta convocatoria pública","Se realiza solicitud para cuentas para los procesos de contratación.",null,"Solicitud debe ser realizada por Director(a)/Subdirector(a), Jefe de oficina o o Coordinador(a)."]
[null,"Configuración de perfil en equipo institucional","Este servicio es tramitado de acuerdo con el instructivo para la configuración de paquete ofimático y acceso a servicios de TI.",null,"Solicitud debe ser realizada por Director(a)/Subdirector(a), Jefe de oficina o o Coordinador(a)."]
[null,"Instalación software","Cuando se solicita instalación de software que requiere licenciamiento adicional y/o validación por parte de la DIT.",null,"Solicitud debe ser realizada por Director(a)/Subdirector(a), Jefe de oficina o o Coordinador(a)."]
[null,"Borrado de información de los dispositivos institucionales","Borrado Seguro por devolución de los dispositivos a Almacén, formateo si el equipo va a ser trasladado a otra área o dependencia, Borrado de perfiles si el equipo va a ser reasignado a otra persona dentro de la misma área o dependencia.",null,"Solicitud debe ser realizada por Director(a)/Subdirector(a), Jefe de oficina o Coordinador(a)."]
[null,"Copia de información (Backup)","Solicitud de copia de información de Equipos, correo y/o OneDrive.",null,"Solicitud debe ser realizada por Director(a)/Subdirector(a), Jefe de oficina o  Coordinador(a)."]
[null,"Revisión Requisitos BYOD","Verificación de equipos personales de contratistas cuando quieren hacer uso de los recursos tecnológicos de la entidad o conectarse a la red de la entidad a través de VPN o de forma directa.  ",null,"Solicitud debe ser realizada por Director(a)/Subdirector(a), Coordinadora de Seguridad y Salud en el Trabajo (SST)  Jefe de oficina  o Coordinador(a)."]
[null,"Asignación de equipo institucional (Impresora,Scanner, Monitor, etcétera)","Asignar equipo a un usuario de área.",null,"Solicitud debe ser realizada por Director(a)/Subdirector(a)  Jefe de oficina o  Coordinador(a)."]
[]
[null,"Antes de imprimir este documento… piense en el medio ambiente!  \nCualquier copia impresa de este documento se considera como COPIA NO CONTROLADA.\nLOS DATOS PROPORCIONADOS SERÁN TRATADOS DE ACUERDO A LA POLÌTICA DE TRATAMIENTO DE DATOS PERSONALES DEL ICBF Y A LA LEY 1581 DE 2012"]

{"sheet":"Listas","index":3,"n_rows":495,"n_cols":32,"rows_kept":495,"cut":false,"hidden":true,"merged":[]}
["StateID","OfficeID","GroupID","Regional","Area","Largo","Regional","Sedes","Regional",null,null,null,null,"Cargos","Planta",null,null,null,"Servicio","Carpeta","Equipo de Computo","Genero","Cambio de nombre (VoIP)",null,null,null,"Extensión Telefónica (VoIP)","Servicios adicionales","Otros_Servicios","VPN",null,"Tipo de elemento"]
[1,10000,0,"Sede de la Direccion General","Consejo Directivo",{"$f":"LEN(E2)","v":17},"Sede_de_la_Direccion_General","Sede de la Direccion General","Sede_de_la_Direccion_General","Planta ",null,"Planta","Planta_cargo","Asesor","Contratista","Contratista","Contratista",null,"Creación cuenta de red y correo","SI","Requiere asignación","Femenino","Es mi extensión personal",null,"Extensión telefónica (VoIP)","Extensión","Usuario ya posee teléfono","Servicios adicionales","Otros_Servicios","Extensión telefónica (VoIP)",null,"Celular"]
[1,10100,0,"Sede de la Direccion General","Direccion General",17,"Regional_Amazonas","Regional Amazonas","Regional_Amazonas","Contrato",null,"Planta","Planta_cargo","Auxiliar Administrativo","Tercero","Contratista","Contratista",null,"Actualizar información","NO","Ya tiene asignado","Masculino","Deseo que me contacten allí",null,"Extensión telefónica (VoIP)","Extensión","Usuario ya posee diadema","Servicios adicionales","Otros_Servicios","Clave telefónica (VoIP)",null,"CPU"]
[1,10101,0,"Sede de la Direccion General","Oficina de Control Interno",26,"Regional_Antioquia","Regional Antioquia","Regional_Antioquia",null,null,"Planta","Planta_cargo","Conductor Mecanico","Operación_Directa","Planta","Planta","Planta","Activación de cuentas por renovación de contrato",null,null,"Binario",null,null,"Extensión telefónica (VoIP)","Extensión","No tiene teléfono o diadema","Servicios adicionales","Otros_Servicios","Cambio de nombre (VoIP)",null,"Portátil"]
[1,10102,0,"Sede de la Direccion General","Oficina de Cooperacion y Convenios",34,"Regional_Arauca","Regional Arauca","Regional_Arauca",null,null,"Planta","Planta_cargo","Defensor de Familia",null,"Planta","Planta","Supernumerario","Activación de cuentas por vacaciones / licencias",null,null,"Queer",null,null,"Permisos internet","PermisoInt","Permitir acceso","Servicios adicionales","Otros_Servicios","Actualizar extensión en tarjeta de contacto",null,"Tablet"]
[1,10200,0,"Sede de la Direccion General","Oficina de Aseguramiento a la Calidad",37,"Regional_Atlantico","Regional Atlantico","Regional_Atlantico",null,null,"Planta","Planta_cargo","Director General",null,"Planta","Planta","Practicante ","Desactivación de cuentas por finalización de contrato",null,null,"Trans",null,null,"Permisos internet","PermisoInt","Restringir acceso","Servicios adicionales","Otros_Servicios","Permisos internet",null,"Todo en uno (AiO)"]
[1,10300,0,"Sede de la Direccion General","Oficina Asesora Juridica",24,"Regional_Bogota","Regional Bogota","Regional_Bogota",null,null,"Planta","Planta_cargo","Director Regional",null,"Planta","Planta",null,"Desactivación de cuentas por vacaciones / licencias",null,null,"Otro",null,null,"VPN","CuentaVPN","Crear","Servicios adicionales","Otros_Servicios","Configuración de perfil en equipo institucional"]
[1,10301,0,"Sede de la Direccion General","Oficina Asesora de Comunicaciones",33,"Regional_Bolivar","Regional Bolivar","Regional_Bolivar",null,null,"Planta","Planta_cargo","Jefe de Oficina",null,"Planta","Planta",null,"Crear listas de distribución",null,null,"No Desea Responder",null,null,"VPN","CuentaVPN","Modificar","Servicios adicionales","Otros_Servicios","Cuenta genérica"]
[1,10302,0,"Sede de la Direccion General","Oficina de Gestion Regional",27,"Regional_Boyaca","Regional Boyaca","Regional_Boyaca",null,null,"Planta","Planta_cargo","Jefe De Oficina Asesora",null,"Estudiante","Estudiante","Judicante","Actualizar listas de distribución",null,null,null,null,null,"VPN","CuentaVPN","Eliminar","Servicios adicionales","Otros_Servicios","Buzón compartido"]
[1,10303,0,"Sede de la Direccion General","Subdireccion General",20,"Regional_Caldas","Regional Caldas","Regional_Caldas",null,null,"Planta","Planta_cargo","Madre Comunitaria",null,"Estudiante","Estudiante",null,"Permiso de envío a listas",null,null,null,null,null,"VPN","CuentaVPN","Activar","Servicios adicionales","Otros_Servicios","Permisos sobre buzón"]
[1,10304,0,"Sede de la Direccion General","Secretaria General",18,"Regional_Caqueta","Regional Caqueta","Regional_Caqueta",null,null,"Planta","Planta_cargo","Profesional Especializado",null,"Tercero","Tercero",null,"Copia de información (Backup)",null,null,null,null,null,"VPN","CuentaVPN","Desactivar","Servicios adicionales","Otros_Servicios","Cuenta convocatoria pública"]
[1,10400,0,"Sede de la Direccion General","Direccion de Gestion Humana",27,"Regional_Casanare","Regional Casanare","Regional_Casanare",null,null,"Planta","Planta_cargo","Profesional Universitario",null,"Tercero","Tercero",null,"Creación SharePoint",null,null,null,null,null,"Cuenta genérica","CuentaG","Crear","Servicios adicionales","Otros_Servicios","Instalación software"]
[1,10401,0,"Sede de la Direccion General","Direccion Administrativa",24,"Regional_Cauca","Regional Cauca","Regional_Cauca",null,null,"Planta","Planta_cargo","Secretario",null,"Tercero","Tercero",null,"Eliminación SharePoint",null,null,null,null,null,"Cuenta genérica","CuentaG","Activar","Servicios adicionales","Otros_Servicios","Borrado de información"]
[1,10402,0,"Sede de la Direccion General","Direccion Financiera",20,"Regional_Cesar","Regional Cesar","Regional_Cesar",null,null,"Planta","Planta_cargo","Secretario Ejecutivo",null,"Tercero","Tercero",null,"Servicios adicionales",null,null,null,null,null,"Cuenta genérica","CuentaG","Desactivar","Servicios adicionales","Otros_Servicios","Impresora"]
[1,10403,0,"Sede de la Direccion General","Direccion de Contratacion",25,"Regional_Choco","Regional Choco","Regional_Choco",null,null,"Planta","Planta_cargo","Secretario General",null,"Tercero","Tercero",null,null,null,null,null,null,null,"Cambio de nombre (VoIP)","Cambionombre","Es mi extensión personal","Servicios adicionales","Otros_Servicios","Asignación de equipo institucional"]
[1,10404,0,"Sede de la Direccion General","Direccion de Servicios y Atencion",33,"Regional_Cordoba","Regional Cordoba","Regional_Cordoba",null,null,"Planta","Planta_cargo","Subdirector General",null,"Tercero","Tercero",null,null,null,null,null,null,null,"Cambio de nombre (VoIP)","Cambionombre","Deseo que me contacten allí","Servicios adicionales","Otros_Servicios","Scanner"]
[1,10405,0,"Sede de la Direccion General","Direccion de Logistica y Abastecimiento",39,"Regional_Cundinamarca","Regional Cundinamarca","Regional_Cundinamarca",null,null,"Planta","Planta_cargo","Subdirector Tecnico",null,"Tercero","Tercero",null,null,null,null,null,null,null,"Borrado de información","Borra_Info","Borrado seguro","Servicios adicionales","Otros_Servicios","Monitor"]
[null,null,null,"Sede de la Direccion General","Oficina de Control Interno Disciplinario",40,"Regional_Guainia","Regional Guainia","Regional_Guainia",null,null,"Planta","Planta_cargo","Tecnico Administrativo",null,"Ente_de_Control","Ente_de_Control","Procuraduría",null,null,null,null,null,null,"Borrado de información","Borra_Info","Formateo de equipo","Servicios adicionales","Otros_Servicios","Agregar perfil de navegación"]
[1,10500,0,"Sede de la Direccion General","Direccion de Planeacion y Control de Gestión",44,"Regional_Guajira","Regional Guajira","Regional_Guajira",null,null,"Planta","Planta_cargo",null,null,"Ente_de_Control","Ente_de_Control","Carrera Administrativa",null,null,null,null,null,null,"Requisitos BYOD","Revision Requisitos","Configurar acceso a servicios tecnologicos ICBF","Servicios adicionales","Otros_Servicios","Modificar perfil de navegación"]
[1,10501,0,"Sede de la Direccion General","Subdireccion de Programacion",28,"Regional_Guaviare","Regional Guaviare","Regional_Guaviare",null,null,"Planta","Planta_cargo",null,null,"Operación_Directa","Operación_Directa",null,null,null,null,null,null,null,"Borrado de información","Borra_Info","Borrado de perfiles","Servicios adicionales","Otros_Servicios","Eliminar perfil de navegación"]
[1,10502,0,"Sede de la Direccion General","Subdireccion de Mejoramiento Organizacional",43,"Regional_Huila","Regional Huila","Regional_Huila",null,null,"Planta","Planta_cargo",null,null,null,null,null,null,null,null,null,null,null,null,null,null,"Servicios adicionales","Otros_Servicios","Permisos acceso al correo desde el exterior"]
[1,10503,0,"Sede de la Direccion General","Subdireccion de Monitoreo y Evaluacion",38,"Regional_Magdalena","Regional Magdalena","Regional_Magdalena",null,null,"Planta","Planta_cargo",null,null,null,null,null,null,null,null,null,null,null,null,null,null,"Servicios adicionales","Otros_Servicios","Unidad externa / periféricos"]
[1,10600,0,"Sede de la Direccion General","Direccion de Informacion y Tecnologia",37,"Regional_Meta","Regional Meta","Regional_Meta",null,null,"Planta","Planta_cargo",null,null,null,null,null,null,null,null,null,null,null,null,null,null,"Servicios adicionales","Otros_Servicios","Revision Requisitos guia BYOD"]
[1,11000,0,"Sede de la Direccion General","Subdireccion de Sistemas Integrados de Informacion",50,"Regional_Nariño","Regional Nariño","Regional_Nariño",null,null,"Planta","Planta_cargo",null,null,null,null,null,null,null,null,null,null,null,null,null,null,"Copia de información (Backup)","CopiaBuCo","Información almacenada en el equipo"]
[1,12000,0,"Sede de la Direccion General","Subdireccion de Recursos Tecnologicos",37,"Regional_Norte_de_Santander","Regional Norte de Santander","Regional_Norte_de_Santander",null,null,"Planta","Planta_cargo",null,null,null,null,null,null,null,null,null,null,null,null,null,null,"Copia de información (Backup)","CopiaBuCo","Información almacenada en el correo"]
[1,12100,0,"Sede de la Direccion General","Direccion Sistema Nacional de Bienestar Familiar",48,"Regional_Putumayo","Regional Putumayo","Regional_Putumayo",null,null,"Planta","Planta_cargo",null,null,null,null,null,null,null,null,null,null,null,null,null,null,"Copia de información (Backup)","CopiaBuCo","Información almacenada en el equipo y correo"]
[1,12101,0,"Sede de la Direccion General","Subdireccion de Articulacion Nacional del SNBF",46,"Regional_Quindio","Regional Quindio","Regional_Quindio",null,null,"Planta","Planta_cargo",null,null,null,null,null,null,null,null,null,null,null,null,null,null,null,null,"Permisos de Administrador sobre Máquina"]
[1,12102,0,"Sede de la Direccion General","Subdireccion de Articulacion Territorial del SNBF",49,"Regional_Risaralda","Regional Risaralda","Regional_Risaralda",null,null,"Planta","Planta_cargo"]
[1,12103,0,"Sede de la Direccion General","Direccion de Primera Infancia",29,"Regional_San_Andres","Regional San Andres","Regional_San_Andres",null,null,"Planta","Planta_cargo"]
[1,12104,0,"Sede de la Direccion General","Subdireccion de Gestion Tecnica para la Atencion a la Primera Infancia",70,"Regional_Santander","Regional Santander","Regional_Santander",null,null,"Planta","Planta_cargo"]
[1,12200,0,"Sede de la Direccion General","Subdireccion de Operacion de la Atencion a la Primera Infancia",62,"Regional_Sucre","Regional Sucre","Regional_Sucre",null,null,"Planta","Planta_cargo"]
[1,12201,0,"Sede de la Direccion General","Direccion de Infancia",21,"Regional_Tolima","Regional Tolima","Regional_Tolima",null,null,"Planta","Planta_cargo"]
[1,12202,0,"Sede de la Direccion General","Subdireccion de Promocion y Fortalecimiento a la Infancia",57,"Regional_Valle","Regional Valle","Regional_Valle",null,null,"Planta","Planta_cargo"]
[1,12203,0,"Sede de la Direccion General","Direccion de Adolescencia y Juventud",36,"Regional_Vaupes","Regional Vaupes","Regional_Vaupes",null,null,"Planta","Planta_cargo"]
[1,12204,0,"Sede de la Direccion General","Subdireccion de Gestion Tecnica para la Adolescencia y la Juventud",66,"Regional_Vichada","Regional Vichada","Regional_Vichada",null,null,"Ente_de_Control","Ente_Control_cargo","Ente de control",null,null,null,null,null,null,null,null,null,null,null,null,null,null,null,"Cuenta VPN"]
[1,12205,0,"Sede de la Direccion General","Subdireccion de Operacion de Programas para la Adolescencia y Juventud",70,null,null,null,null,null,"Contratista","contratista_cargo","Contratista",null,null,null,null,null,null,null,null,null,null,null,null,null,null,null,"Extensión Telefónica (VoIP)"]
[1,12300,0,"Sede de la Direccion General","Direccion de Familias y Comunidades",35,null,null,null,null,null,"Estudiante","Estudiante_cargo","Estudiante",null,null,null,null,null,null,null,null,null,null,null,null,null,null,null,"Clave telefónica (VoIP)"]
[1,12301,0,"Sede de la Direccion General","Subdireccion de Gestion Tecnica para la Atencion a la Familia y Comunidades",75,null,null,null,null,null,"Tercero","Tercero_Cargo","Tercero",null,null,null,null,null,null,null,null,null,null,null,null,null,null,null,"Cambio de nombre (VoIP)"]
[1,12302,0,"Sede de la Direccion General","Subdireccion de Operacion de la Atencion a la Familia y Comunidades.",68,null,null,null,null,null,"Operación_Directa","Opera_Dire_Cargo","Agente Educativo","Agente Educativo",null,null,null,null,null,null,null,null,null,null,null,null,null,null,"Actualizar Tarjeta de Contacto"]
[1,12303,0,"Sede de la Direccion General","Direccion de Nutricion",22,null,null,null,null,null,"Operación_Directa","Opera_Dire_Cargo","Asistente Administrativo","Asistente Administrativo",null,null,null,null,null,null,null,null,null,null,null,null,null,null,"Permisos Internet"]
[1,12304,0,"Sede de la Direccion General","Direccion de Proteccion",23,null,null,null,null,null,"Operación_Directa","Opera_Dire_Cargo","Auxiliar Administrativo","Auxiliar Administrativo",null,null,null,null,null,null,null,null,null,null,null,null,null,null,"Cuenta Genérica"]
[1,12305,0,"Sede de la Direccion General","Subdireccion de Restablecimiento de Derechos",44,null,null,null,null,null,"Operación_Directa","Opera_Dire_Cargo","Auxiliar Administrativo con actividades de apoyo al fortalecimiento de la Regional y/o Centro Zonal","Auxiliar Administrativo con actividades de apoyo al fortalecimiento de la Regional y/o Centro Zonal",null,null,null,null,null,null,null,null,null,null,null,null,null,null,"Buzón Compartido"]
[1,12306,0,"Sede de la Direccion General","Subdireccion de Responsabilidad Penal",37,null,null,null,null,null,"Operación_Directa","Opera_Dire_Cargo","Auxiliar de Servicios Generales","Auxiliar de Servicios Generales",null,null,null,null,null,null,null,null,null,null,null,null,null,null,"Cuenta Convocatoria Publica"]
[1,12400,0,"Sede de la Direccion General","Subdireccion de Adopciones",26,null,null,null,null,null,"Operación_Directa","Opera_Dire_Cargo","Auxiliar Pedagógico","Auxiliar Pedagógico",null,null,null,null,null,null,null,null,null,null,null,null,null,null,"Instalación Software"]
[1,12500,0,"Sede de la Direccion General","Direcciones Regionales",22,null,null,null,null,null,"Operación_Directa","Opera_Dire_Cargo","Coordinador Apoyo a la coordinación","Coordinador Apoyo a la coordinación",null,null,null,null,null,null,null,null,null,null,null,null,null,null,"Borrado Seguro"]
[1,12501,0,"Sede de la Direccion General","Organos Internos de Asesoria y Coordinacion",43,null,null,null,null,null,"Operación_Directa","Opera_Dire_Cargo","Director Director Asistente","Director Director Asistente",null,null,null,null,null,null,null,null,null,null,null,null,null,null,"Copia Buzon de Correo"]
[1,12502,0,"Sede de la Direccion General","Comision de Personal",20,null,null,null,null,null,"Operación_Directa","Opera_Dire_Cargo","Gestor de Alimentos","Gestor de Alimentos"]
[1,12600,0,"Sede de la Direccion General","Comite de Coordinacion del Sistema de Control Interno",53,null,null,null,null,null,"Operación_Directa","Opera_Dire_Cargo","Maestra Jardinera","Maestra Jardinera"]
[1,12601,0,"Sede de la Direccion General","Comite de Defensa Judicial y Conciliacion",41,null,null,null,null,null,"Operación_Directa","Opera_Dire_Cargo","Manipulador de Alimentos","Manipulador de Alimentos"]
[1,12700,0,"Sede de la Direccion General","Comite de Gestion Integral",26,null,null,null,null,null,"Operación_Directa","Opera_Dire_Cargo","Profesional en Salud y Nutrición","Profesional en Salud y Nutrición"]
[1,12701,0,"Sede de la Direccion General","Grupo de Administracion de la Carrera Administrativa",52,null,null,null,null,null,"Operación_Directa","Opera_Dire_Cargo","Profesional Psicosocial","Profesional Psicosocial"]
[1,12702,0,"Sede de la Direccion General","Grupo de Almacen e Inventarios",30]
[1,12703,0,"Sede de la Direccion General","Grupo de Apoyo Logistico",24]
[1,12704,0,"Sede de la Direccion General","Grupo de Asesoria Juridica",26]
[1,13000,0,"Sede de la Direccion General","Grupo de Asistencia Tecnica Sistema Aseguramiento Calidad",57]
[1,13001,0,"Sede de la Direccion General","Grupo de Auditorias de Calidad",30]
[1,13100,0,"Sede de la Direccion General","Grupo de Comunicacion Externa",29]
[1,13200,0,"Sede de la Direccion General","Grupo de Comunicacion Interna",29]
[1,13300,0,"Sede de la Direccion General","Grupo de Contabilidad",21]
[1,14000,0,"Sede de la Direccion General","Grupo de Control Constitucional y Estrategias Juridicas",55]
[1,14100,0,"Sede de la Direccion General","Grupo de Coordinacion de Autoridades Administrativas",52]
[1,14200,0,"Sede de la Direccion General","Grupo de Desarrollo del Talento Humano",38]
[1,20000,0,"Sede de la Direccion General","Grupo de Estadistica y Gestion de Informacion",45]
[1,20100,0,"Sede de la Direccion General","Grupo de Familia",16]
[1,20200,0,"Sede de la Direccion General","Grupo de Gestion de Bienes",26]
[1,21000,0,"Sede de la Direccion General","Grupo de Gestion de Calidad para el Servicio y la Atencion",58]
[1,21100,0,"Sede de la Direccion General","Grupo de Gestion de Canales Centro de Contacto",46]
[1,21200,0,"Sede de la Direccion General","Grupo de Gestion Documental",27]
[1,22000,0,"Sede de la Direccion General","Grupo de Gestion Tecnica en Nutricion",37]
[1,22100,0,"Sede de la Direccion General","Grupo de Infraestructura Inmobiliaria",37]
[1,22200,0,"Sede de la Direccion General","Grupo de Investigaciones Disciplinarias",39]
[1,23000,0,"Sede de la Direccion General","Grupo de Jurisdiccion Coactiva",30]
[1,23100,0,"Sede de la Direccion General","Grupo de Mejoramiento e Innovacion",34]
[1,23200,0,"Sede de la Direccion General","Grupo de Nomina y Seguridad Social",34]
[1,24000,0,"Sede de la Direccion General","Grupo de Personerias Juridicas y Licencias de Funcionamiento",60]
[1,24001,0,"Sede de la Direccion General","Grupo de Planeacion Administrativa",34]
[1,25000,0,"Sede de la Direccion General","Grupo de Planeacion y Seguimiento Financiera y de Gestion",57]
[1,25001,0,"Sede de la Direccion General","Grupo de Prensa",15]
[1,25100,0,"Sede de la Direccion General","Grupo de Presupuesto",20]
[1,25200,0,"Sede de la Direccion General","Grupo de Prevencion",19]
[1,25300,0,"Sede de la Direccion General","Grupo de Procesos de Apoyo",26]
[null,null,null,"Sede de la Direccion General","Grupo de Procesos Misionales",28]
[5,500,10000,"Regional Antioquia","Centro Zonal Aburra Norte",25]
[5,500,10010,"Regional Antioquia","Centro Zonal Aburra Sur",23]
[5,500,20000,"Regional Antioquia","Centro Zonal Bajo Cauca",23]
[5,500,30200,"Regional Antioquia","Centro Zonal Integral Sur Oriental",34]
[5,500,30400,"Regional Antioquia","Centro Zonal la Floresta",24]
[5,500,40000,"Regional Antioquia","Centro Zonal La Meseta",22]
[5,500,50000,"Regional Antioquia","Centro Zonal Magdalena Medio",28]
[5,501,10100,"Regional Antioquia","Centro Zonal Noroccidental",26]
[5,502,10200,"Regional Antioquia","Centro Zonal Nororiental",24]
[5,504,10400,"Regional Antioquia","Centro Zonal Occidente",22]
[5,505,10500,"Regional Antioquia","Centro Zonal Occidente Medio",28]
[5,506,10600,"Regional Antioquia","Centro Zonal Oriental",21]
[5,507,10700,"Regional Antioquia","Centro Zonal Oriente Medio",26]
[5,508,10800,"Regional Antioquia","Centro Zonal Penderisco",23]
[5,509,10900,"Regional Antioquia","Centro Zonal Porce Nus",22]
[5,510,11000,"Regional Antioquia","Centro Zonal Suroeste",21]
[5,511,11100,"Regional Antioquia","Centro Zonal Uraba",18]
[5,512,11200,"Regional Antioquia","Direccion Regional",18]
[5,513,11300,"Regional Antioquia","Grupo Administrativo",20]
[5,514,11400,"Regional Antioquia","Grupo de Atencion en Ciclos de Vida y Nutricion",47]
[5,515,11500,"Regional Antioquia","Grupo de Gestion Humana",23]
[5,516,11600,"Regional Antioquia","Grupo de Planeacion y Sistemas",30]
[5,517,11700,"Regional Antioquia","Grupo de Proteccion",19]
[8,800,10000,"Regional Antioquia","Grupo Financiero",16]
[8,800,10010,"Regional Antioquia","Grupo Juridico",14]
[8,800,20000,"Regional Atlantico","Centro Zonal Baranoa",20]
[8,800,30000,"Regional Atlantico","Centro Zonal Hipodromo",22]
[8,800,40000,"Regional Atlantico","Centro Zonal Norte Centro Historico",35]
[8,800,50000,"Regional Atlantico","Centro Zonal Sabanagrande",25]
[8,801,10100,"Regional Atlantico","Centro Zonal Sabanalarga",24]
[8,802,10200,"Regional Atlantico","Centro Zonal Suroccidente",25]
[8,803,10300,"Regional Atlantico","Centro Zonal Suroriente",23]
[8,804,10400,"Regional Atlantico","Direccion Regional",18]
[8,805,10500,"Regional Atlantico","Grupo Administrativo",20]
[8,806,10600,"Regional Atlantico","Grupo de Asistencia Tecnica",27]
[8,807,10700,"Regional Atlantico","Grupo de Planeacion y Sistemas",30]
[11,1100,10000,"Regional Atlantico","Grupo Financiero",16]
[11,1100,10010,"Regional Atlantico","Grupo Juridico",14]
[11,1100,20000,"Regional Bogota","Centro de Restitucion Especializado Efecto Reanudar - CREER",59]
[11,1100,30200,"Regional Bogota","Centro Zonal Barrios Unidos",27]
[11,1100,30400,"Regional Bogota","Centro Zonal Bosa",17]
[11,1100,40000,"Regional Bogota","Centro Zonal Ciudad Bolivar",27]
[11,1100,40200,"Regional Bogota","Centro Zonal Engativa",21]
[11,1100,50000,"Regional Bogota","Centro Zonal Fontibon",21]
[11,1100,50100,"Regional Bogota","Centro Zonal Kennedy",20]
[11,1101,10100,"Regional Bogota","Centro Zonal Martires",21]
[11,1102,10200,"Regional Bogota","Centro Zonal Puente Aranda",26]
[11,1103,10300,"Regional Bogota","Centro Zonal Rafael Uribe",25]
[11,1104,10400,"Regional Bogota","Centro Zonal Revivir",20]
[11,1105,10500,"Regional Bogota","Centro Zonal San Cristobal Sur",30]
[11,1106,10600,"Regional Bogota","Centro Zonal Santafe",20]
[11,1107,10700,"Regional Bogota","Centro Zonal Suba",17]
[11,1108,10800,"Regional Bogota","Centro Zonal Tunjuelito",23]
[11,1109,10900,"Regional Bogota","Centro Zonal Usaquen",20]
[11,1110,11000,"Regional Bogota","Centro Zonal Usme",17]
[11,1111,11100,"Regional Bogota","Direccion Regional",18]
[11,1112,11200,"Regional Bogota","Grupo Administrativo",20]
[11,1113,11300,"Regional Bogota","Grupo de Atencion en Ciclos de Vida y Nutricion",47]
[11,1114,11400,"Regional Bogota","Grupo de Contratacion ",22]
[11,1115,11500,"Regional Bogota","Grupo de Gestion Humana",23]
[11,1116,11600,"Regional Bogota","Grupo de Planeacion y Sistemas",30]
[11,1117,11700,"Regional Bogota","Grupo de Proteccion",19]
[13,1300,10000,"Regional Bogota","Grupo de Recaudo",16]
[13,1300,10010,"Regional Bogota","Grupo Financiero",16]
[13,1300,10010,"Regional Bogota","Grupo Juridico",14]
[13,1300,20000,"Regional Bolivar","Centro Zonal de la Virgen y Turistico",37]
[13,1300,30000,"Regional Bolivar","Centro Zonal El Carmen de Bolivar",33]
[13,1300,40000,"Regional Bolivar","Centro Zonal Historico y del Caribe Norte",41]
[13,1300,50000,"Regional Bolivar","Centro Zonal Industrial de la Bahia",35]
[13,1301,10100,"Regional Bolivar","Centro Zonal Magangue",21]
[13,1302,10200,"Regional Bolivar","Centro Zonal Mompox",19]
[13,1303,10300,"Regional Bolivar","Centro Zonal Simiti",19]
[13,1304,10400,"Regional Bolivar","Centro Zonal Turbaco",20]
[13,1305,10500,"Regional Bolivar","Direccion Regional",18]
[13,1306,10600,"Regional Bolivar","Grupo Administrativo",20]
[13,1307,10700,"Regional Bolivar","Grupo de Asistencia Tecnica",27]
[13,1308,10800,"Regional Bolivar","Grupo de Planeacion y Sistemas",30]
[15,1500,10000,"Regional Bolivar","Grupo Financiero",16]
[15,1500,10010,"Regional Bolivar","Grupo Juridico",14]
[15,1500,20000,"Regional Boyaca","Centro Zonal Chiquinquira",25]
[15,1500,30000,"Regional Boyaca","Centro Zonal Duitama",20]
[15,1500,40000,"Regional Boyaca","Centro Zonal El Cocuy",21]
[15,1500,50000,"Regional Boyaca","Centro Zonal Garagoa",20]
[15,1501,10100,"Regional Boyaca","Centro Zonal Miraflores",23]
[15,1502,10200,"Regional Boyaca","Centro Zonal Moniquira",22]
[15,1503,10300,"Regional Boyaca","Centro Zonal Otanche",20]
[15,1504,10400,"Regional Boyaca","Centro Zonal Puerto Boyaca",26]
[15,1505,10500,"Regional Boyaca","Centro Zonal Soata",18]
[15,1506,10600,"Regional Boyaca","Centro Zonal Sogamoso",21]
[15,1507,10700,"Regional Boyaca","Centro Zonal Tunja 1",20]
[15,1508,10800,"Regional Boyaca","Centro Zonal Tunja 2",20]
[15,1509,10900,"Regional Boyaca","Direccion Regional",18]
[15,1510,11000,"Regional Boyaca","Grupo Administrativo",20]
[15,1511,11100,"Regional Boyaca","Grupo de Asistencia Tecnica",27]
[15,1512,11200,"Regional Boyaca","Grupo de Planeacion y Sistemas",30]
[17,1700,10000,"Regional Boyaca","Grupo Financiero",16]
[17,1700,10010,"Regional Boyaca","Grupo Juridico",14]
[17,1700,20000,"Regional Caldas","Centro Zonal del Cafe",21]
[17,1700,30000,"Regional Caldas","Centro Zonal Manizales 1",24]
[17,1700,40000,"Regional Caldas","Centro Zonal Manizales 2",24]
[17,1700,50000,"Regional Caldas","Centro Zonal Norte",18]
[17,1701,10100,"Regional Caldas","Centro Zonal Occidente",22]
[17,1702,10200,"Regional Caldas","Centro Zonal Oriente",20]
[17,1703,10300,"Regional Caldas","Centro Zonal Sur oriente",24]
[17,1704,10400,"Regional Caldas","Direccion Regional",18]
[17,1705,10500,"Regional Caldas","Grupo Administrativo",20]
[17,1706,10600,"Regional Caldas","Grupo de Asistencia Tecnica",27]
[17,1707,10700,"Regional Caldas","Grupo de Planeacion y Sistemas",30]
[18,1800,10000,"Regional Caldas","Grupo Financiero",16]
[18,1800,10010,"Regional Caldas","Grupo Juridico",14]
[18,1800,20000,"Regional Caqueta","Centro Zonal Belen de los Andaquies",35]
[18,1800,30000,"Regional Caqueta","Centro Zonal Florencia 1",24]
[18,1800,40000,"Regional Caqueta","Centro Zonal Florencia 2",24]
[18,1800,50000,"Regional Caqueta","Centro Zonal Puerto Rico",24]
[18,1801,10100,"Regional Caqueta","Direccion Regional",18]
[18,1802,10200,"Regional Caqueta","Grupo Administrativo",20]
[18,1803,10300,"Regional Caqueta","Grupo de Asistencia Tecnica",27]
[18,1804,10400,"Regional Caqueta","Grupo de Planeacion y Sistemas",30]
[19,1900,10000,"Regional Caqueta","Grupo Financiero",16]
[19,1900,10010,"Regional Caqueta","Grupo Juridico",14]
[19,1900,20000,"Regional Cauca","Centro Zonal Centro",19]
[19,1900,30000,"Regional Cauca","Centro Zonal Costa Pacifica",27]
[19,1900,40000,"Regional Cauca","Centro Zonal Indigena",21]
[19,1900,50000,"Regional Cauca","Centro Zonal Macizo Colombiano",30]
[19,1901,10100,"Regional Cauca","Centro Zonal Norte",18]
[19,1902,10200,"Regional Cauca","Centro Zonal Popayan",20]
[19,1903,10300,"Regional Cauca","Centro Zonal Sur",16]
[19,1904,10500,"Regional Cauca","Direccion Regional",18]
[19,1905,10400,"Regional Cauca","Grupo Administrativo",20]
[19,1906,10600,"Regional Cauca","Grupo de Asistencia Tecnica",27]
[19,1907,10700,"Regional Cauca","Grupo de Planeacion y Sistemas",30]
[20,2000,10000,"Regional Cauca","Grupo Financiero",16]
[20,2000,10010,"Regional Cauca","Grupo Juridico",14]
[20,2000,20000,"Regional Cesar","Centro Zonal Aguachica",22]
[20,2000,30000,"Regional Cesar","Centro Zonal Agustin Codazzi",28]
[20,2000,40000,"Regional Cesar","Centro Zonal Chiriguana",23]
[20,2000,50000,"Regional Cesar","Centro Zonal Valledupar 1",25]
[20,2001,10100,"Regional Cesar","Centro Zonal Valledupar 2",25]
[20,2002,10200,"Regional Cesar","Direccion Regional",18]
[20,2003,10300,"Regional Cesar","Grupo Administrativo",20]
[20,2004,10400,"Regional Cesar","Grupo de Asistencia Tecnica",27]
[20,2005,10500,"Regional Cesar","Grupo de Planeacion y Sistemas",30]
[23,2300,10000,"Regional Cesar","Grupo Financiero",16]
[23,2300,10010,"Regional Cesar","Grupo Juridico",14]
[23,2300,40000,"Regional Cordoba","Centro Zonal Cerete",19]
[23,2300,50000,"Regional Cordoba","Centro Zonal Lorica",19]
[23,2301,10100,"Regional Cordoba","Centro Zonal Monte Libano",25]
[23,2302,10200,"Regional Cordoba","Centro Zonal Monteria 1",23]
[23,2303,10300,"Regional Cordoba","Centro Zonal Planeta Rica",25]
[23,2304,10400,"Regional Cordoba","Centro Zonal Sahagun",20]
[23,2305,10500,"Regional Cordoba","Centro Zonal San Andres de Sotavento",36]
[23,2306,10600,"Regional Cordoba","Centro Zonal Tierralta",22]
[23,2307,10700,"Regional Cordoba","Direccion Regional",18]
[23,2308,10800,"Regional Cordoba","Grupo Administrativo",20]
[25,2500,10000,"Regional Cordoba","Grupo de Asistencia Tecnica",27]
[25,2500,10010,"Regional Cordoba","Grupo de Planeacion y Sistemas",30]
[25,2500,20000,"Regional Cordoba","Grupo Financiero",16]
[25,2500,30000,"Regional Cordoba","Grupo Juridico",14]
[25,2500,40000,"Regional Cundinamarca","Centro Zonal Caqueza",20]
[25,2500,50000,"Regional Cundinamarca","Centro Zonal Choconta",21]
[25,2501,10100,"Regional Cundinamarca","Centro Zonal Facatativa",23]
[25,2502,10200,"Regional Cundinamarca","Centro Zonal Fusagasuga",23]
[25,2503,10300,"Regional Cundinamarca","Centro Zonal Gacheta",20]
[25,2504,10400,"Regional Cundinamarca","Centro Zonal Girardot",21]
[25,2505,10500,"Regional Cundinamarca","Centro Zonal La Mesa",20]
[25,2506,10600,"Regional Cundinamarca","Centro Zonal Pacho",18]
[25,2507,10700,"Regional Cundinamarca","Centro Zonal San Juan de Rioseco",32]
[25,2508,10800,"Regional Cundinamarca","Centro Zonal Soacha",19]
[25,2509,10900,"Regional Cundinamarca","Centro Zonal Ubate",18]
[25,2510,11000,"Regional Cundinamarca","Centro Zonal Villeta",20]
[25,2511,11100,"Regional Cundinamarca","Centro Zonal Zipaquira",22]
[25,2512,11200,"Regional Cundinamarca","Direccion Regional",18]
[25,2513,11300,"Regional Cundinamarca","Grupo Administrativo",20]
[27,2700,10000,"Regional Cundinamarca","Grupo de Asistencia Tecnica",27]
[27,2700,10010,"Regional Cundinamarca","Grupo de Planeacion y Sistemas",{"$f":"LEN(E257)","v":30}]
[27,2700,20000,"Regional Cundinamarca","Grupo Financiero",16]
[27,2700,30000,"Regional Cundinamarca","Grupo Juridico",14]
[27,2700,40000,"Regional Choco","Centro Zonal Bahia Solano",25]
[27,2700,50000,"Regional Choco","Centro Zonal Istmina",20]
[27,2701,10100,"Regional Choco","Centro Zonal Quibdo",19]
[27,2702,10200,"Regional Choco","Centro Zonal Riosucio",21]
[27,2703,10300,"Regional Choco","Centro Zonal Tado",17]
[27,2704,10400,"Regional Choco","Direccion Regional",18]
[27,2705,10500,"Regional Choco","Grupo Administrativo",20]
[41,4100,10000,"Regional Choco","Grupo de Asistencia Tecnica",27]
[41,4100,10010,"Regional Choco","Grupo de Planeacion y Sistemas",30]
[41,4100,20000,"Regional Choco","Grupo Financiero",16]
[41,4100,30000,"Regional Choco","Grupo Juridico",14]
[41,4100,40000,"Regional Huila","Centro Zonal Garzon",19]
[41,4100,50000,"Regional Huila","Centro Zonal La Gaitana",23]
[41,4101,10100,"Regional Huila","Centro Zonal La Plata",21]
[41,4102,10300,"Regional Huila","Centro Zonal Neiva",18]
[41,4103,10400,"Regional Huila","Centro Zonal Pitalito",21]
[41,4104,10500,"Regional Huila","Direccion Regional",18]
[41,4105,10200,"Regional Huila","Grupo Administrativo",20]
[44,4400,10000,"Regional Huila","Grupo de Asistencia Tecnica",27]
[44,4400,10010,"Regional Huila","Grupo de Planeacion y Sistemas",30]
[44,4400,20000,"Regional Huila","Grupo Financiero",16]
[44,4400,30000,"Regional Huila","Grupo Juridico",14]
[44,4400,40000,"Regional Guajira","Centro Zonal Fonseca",20]
[44,4400,50000,"Regional Guajira","Centro Zonal Maicao",19]
[44,4401,10100,"Regional Guajira","Centro Zonal Manaure",20]
[44,4402,10200,"Regional Guajira","Centro Zonal Nazareth",21]
[44,4403,10300,"Regional Guajira","Centro Zonal Riohacha 1",23]
[44,4404,10400,"Regional Guajira","Centro Zonal Riohacha 2",23]
[44,4405,10500,"Regional Guajira","Direccion Regional",18]
[47,4700,10000,"Regional Guajira","Grupo Administrativo",20]
[47,4700,10010,"Regional Guajira","Grupo de Asistencia Tecnica",27]
[47,4700,20000,"Regional Guajira","Grupo de Planeacion y Sistemas",30]
[47,4700,30000,"Regional Guajira","Grupo Financiero",16]
[47,4700,40000,"Regional Guajira","Grupo Juridico",14]
[47,4700,50000,"Regional Magdalena","Centro Zonal Cienaga",20]
[47,4701,10100,"Regional Magdalena","Centro Zonal del Rio",20]
[47,4702,10200,"Regional Magdalena","Centro Zonal El Banco",21]
[47,4703,10300,"Regional Magdalena","Centro Zonal Fundacion",22]
[47,4704,10400,"Regional Magdalena","Centro Zonal Plato",18]
[47,4705,10500,"Regional Magdalena","Centro Zonal Santa Marta 1",26]
[47,4706,10400,"Regional Magdalena","Centro Zonal Santa Marta 2",26]
[47,4707,10700,"Regional Magdalena","Centro Zonal Santana",20]
[47,4708,10800,"Regional Magdalena","Direccion Regional",18]
[50,5000,10000,"Regional Magdalena","Grupo Administrativo",20]
[50,5000,10010,"Regional Magdalena","Grupo de Asistencia Tecnica",27]
[50,5000,20000,"Regional Magdalena","Grupo de Planeacion y Sistemas",30]
[50,5000,30000,"Regional Magdalena","Grupo Financiero",16]
[50,5000,40000,"Regional Magdalena","Grupo Juridico",14]
[50,5000,50000,"Regional Meta","Centro Zonal Acacias",20]
[50,5001,10100,"Regional Meta","Centro Zonal Granada",20]
[50,5002,10200,"Regional Meta","Centro Zonal Puerto Lopez",25]
[50,5003,10300,"Regional Meta","Centro Zonal Villavicencio 1",28]
[50,5004,10400,"Regional Meta","Centro Zonal Villavicencio 2",28]
[50,5005,10500,"Regional Meta","Direccion Regional",18]
[52,5200,10000,"Regional Meta","Grupo Administrativo",20]
[52,5200,10010,"Regional Meta","Grupo de Asistencia Tecnica",27]
[52,5200,20000,"Regional Meta","Grupo de Planeacion y Sistemas",30]
[52,5200,30000,"Regional Meta","Grupo Financiero",16]
[52,5200,40000,"Regional Meta","Grupo Juridico",14]
[52,5200,50000,"Regional Nariño","Centro Zonal Barbacoas",22]
[52,5201,10100,"Regional Nariño","Centro Zonal Ipiales",20]
[52,5202,10200,"Regional Nariño","Centro Zonal La Union",21]
[52,5203,10300,"Regional Nariño","Centro Zonal Pasto 1",20]
[52,5204,10400,"Regional Nariño","Centro Zonal Pasto 2",20]
[52,5205,10500,"Regional Nariño","Centro Zonal Remolino",21]
[52,5206,10600,"Regional Nariño","Centro Zonal Tumaco",19]
[52,5207,10700,"Regional Nariño","Centro Zonal Tuquerres",22]
[52,5208,10800,"Regional Nariño","Direccion Regional",18]
[54,5400,10000,"Regional Nariño","Grupo Administrativo",20]
[54,5400,10010,"Regional Nariño","Grupo de Asistencia Tecnica",27]
[54,5400,20000,"Regional Nariño","Grupo de Planeacion y Sistemas",30]
[54,5400,30000,"Regional Nariño","Grupo Financiero",16]
[54,5400,40000,"Regional Nariño","Grupo Juridico",14]
[54,5403,10300,"Regional Norte de Santander","Centro Zonal Cucuta 1",21]
[54,5404,10400,"Regional Norte de Santander","Centro Zonal Cucuta 2",21]
[54,5405,10500,"Regional Norte de Santander","Centro Zonal Cucuta 3",21]
[54,5406,10600,"Regional Norte de Santander","Centro Zonal Ocaña",18]
[63,6300,10000,"Regional Norte de Santander","Centro Zonal Pamplona",21]
[63,6300,10010,"Regional Norte de Santander","Centro Zonal Tibu",17]
[63,6300,20000,"Regional Norte de Santander","Direccion Regional",18]
[63,6300,30000,"Regional Norte de Santander","Grupo Administrativo",20]
[63,6300,40000,"Regional Norte de Santander","Grupo de Asistencia Tecnica",27]
[63,6300,50000,"Regional Norte de Santander","Grupo de Planeacion y Sistemas",30]
[63,6301,10100,"Regional Norte de Santander","Grupo Financiero",16]
[63,6302,10200,"Regional Norte de Santander","Grupo Juridico",14]
[63,6303,10300,"Regional Quindio","Centro Zonal Armenia Norte",26]
[66,6600,10000,"Regional Quindio","Centro Zonal Armenia Sur",24]
[66,6600,10010,"Regional Quindio","Centro Zonal Calarca",20]
[66,6600,20000,"Regional Quindio","Direccion Regional",18]
[66,6600,30000,"Regional Quindio","Grupo Administrativo",20]
[66,6600,40000,"Regional Quindio","Grupo de Asistencia Tecnica",27]
[66,6600,50000,"Regional Quindio","Grupo de Planeacion y Sistemas",30]
[66,6601,10100,"Regional Quindio","Grupo Financiero",16]
[66,6602,10200,"Regional Quindio","Grupo Juridico",14]
[66,6603,10300,"Regional Risaralda","Centro Zonal Belen de Umbria",28]
[66,6604,10400,"Regional Risaralda","Centro Zonal Dos Quebradas",26]
[66,6605,10500,"Regional Risaralda","Centro Zonal La Virginia",24]
[68,6800,10000,"Regional Risaralda","Centro Zonal Pereira",20]
[68,6800,10010,"Regional Risaralda","Centro Zonal Santa Rosa de Cabal",32]
[68,6800,20000,"Regional Risaralda","Direccion Regional",18]
[68,6800,30000,"Regional Risaralda","Grupo Administrativo",20]
[68,6800,40000,"Regional Risaralda","Grupo de Asistencia Tecnica",27]
[68,6800,50000,"Regional Risaralda","Grupo de Planeacion y Sistemas",30]
[68,6801,10100,"Regional Risaralda","Grupo Financiero",16]
[68,6802,10200,"Regional Risaralda","Grupo Juridico",14]
[null,null,null,"Regional Santander","Centro Zonal Antonia Santos",27]
[68,6803,10300,"Regional Santander","Centro Zonal Bucaramanga Norte",30]
[68,6804,10400,"Regional Santander","Centro Zonal Bucaramanga Sur",28]
[68,6805,10500,"Regional Santander","Centro Zonal Carlos Lleras Restrepo",35]
[68,6806,10600,"Regional Santander","Centro Zonal la Floresta",24]
[68,6807,10700,"Regional Santander","Centro Zonal Luis Carlos Galan Sarmiento",40]
[68,6808,10800,"Regional Santander","Centro Zonal Malaga",19]
[68,6809,10900,"Regional Santander","Centro Zonal Resurgir",21]
[68,6810,11000,"Regional Santander","Centro Zonal San Gil",20]
[70,7000,10000,"Regional Santander","Centro Zonal Socorro",20]
[70,7000,10010,"Regional Santander","Centro Zonal Velez",18]
[70,7000,20000,"Regional Santander","Centro Zonal Yariquies",22]
[70,7000,30000,"Regional Santander","Direccion Regional",18]
[70,7000,40000,"Regional Santander","Grupo Administrativo",20]
[70,7000,50000,"Regional Santander","Grupo de Asistencia Tecnica",27]
[70,7001,10100,"Regional Santander","Grupo de Planeacion y Sistemas",30]
[70,7002,10200,"Regional Santander","Grupo Financiero",16]
[70,7003,10300,"Regional Santander","Grupo Juridico",14]
[73,7300,10000,"Regional Sucre","Centro Zonal Boston",19]
[73,7300,10010,"Regional Sucre","Centro Zonal La Mojana",22]
[73,7300,20000,"Regional Sucre","Centro Zonal Norte",18]
[73,7300,30000,"Regional Sucre","Centro Zonal Sincelejo",22]
[73,7300,40000,"Regional Sucre","Direccion Regional",18]
[73,7300,50000,"Regional Sucre","Grupo Administrativo",20]
[73,7301,10100,"Regional Sucre","Grupo de Asistencia Tecnica",27]
[73,7302,10200,"Regional Sucre","Grupo de Planeacion y Sistemas",30]
[73,7303,10300,"Regional Sucre","Grupo Financiero",16]
[73,7304,10400,"Regional Sucre","Grupo Juridico",14]
[73,7306,10600,"Regional Tolima","Centro Zonal Chaparral",22]
[73,7307,10700,"Regional Tolima","Centro Zonal Espinal",20]
[73,7308,10800,"Regional Tolima","Centro Zonal Galan",18]
[73,7309,10900,"Regional Tolima","Centro Zonal Honda",18]
[73,7312,11000,"Regional Tolima","Centro Zonal Ibague",19]
[76,7600,10000,"Regional Tolima","Centro Zonal Jordan",19]
[76,7600,10010,"Regional Tolima","Centro Zonal Lerida",19]
[76,7600,20000,"Regional Tolima","Centro Zonal Libano",19]
[76,7600,30200,"Regional Tolima","Centro Zonal Melgar",19]
[76,7600,30400,"Regional Tolima","Centro Zonal Purificacion",25]
[76,7600,40000,"Regional Tolima","Direccion Regional",18]
[76,7600,50000,"Regional Tolima","Grupo Administrativo",20]
[76,7601,10100,"Regional Tolima","Grupo de Asistencia Tecnica",27]
[76,7602,10200,"Regional Tolima","Grupo de Planeacion y Sistemas",30]
[76,7603,10300,"Regional Tolima","Grupo Financiero",16]
[76,7604,10400,"Regional Tolima","Grupo Juridico",14]
[76,7607,10700,"Regional Valle","Centro Zonal Buenaventura",25]
[76,7608,10800,"Regional Valle","Centro Zonal Buga",17]
[76,7609,10900,"Regional Valle","Centro Zonal Cartago",20]
[76,7610,11000,"Regional Valle","Centro Zonal Centro",19]
[76,7611,11100,"Regional Valle","Centro Zonal Jamundi",20]
[76,7612,11200,"Regional Valle","Centro Zonal Ladera",19]
[76,7613,11300,"Regional Valle","Centro Zonal Nororiental",24]
[76,7614,11400,"Regional Valle","Centro Zonal Palmira",20]
[null,null,null,"Regional Valle","Centro Zonal Restaurar",22]
[81,8100,10000,"Regional Valle","Centro Zonal Roldanillo",23]
[81,8100,10010,"Regional Valle","Centro Zonal Sevilla",20]
[81,8100,20000,"Regional Valle","Centro Zonal Sur",16]
[81,8100,30000,"Regional Valle","Centro Zonal Suroriental",24]
[81,8100,40000,"Regional Valle","Centro Zonal Tulua",18]
[81,8100,50000,"Regional Valle","Centro Zonal Yumbo",18]
[81,8101,10100,"Regional Valle","Direccion Regional",18]
[81,8102,10200,"Regional Valle","Grupo Administrativo",20]
[81,8103,10300,"Regional Valle","Grupo de Atencion en Ciclos de Vida y Nutricion",47]
[85,8500,10000,"Regional Valle","Grupo de Gestion Humana",23]
[85,8500,10010,"Regional Valle","Grupo de Planeacion y Sistemas",30]
[85,8500,20000,"Regional Valle","Grupo de Proteccion",19]
[85,8500,30000,"Regional Valle","Grupo Financiero",16]
[85,8500,40000,"Regional Valle","Grupo Juridico",14]
[85,8500,50000,"Regional Arauca","Centro Zonal Arauca",19]
[85,8501,10100,"Regional Arauca","Centro Zonal Saravena",21]
[85,8502,10200,"Regional Arauca","Centro Zonal Tame",17]
[85,8503,10300,"Regional Arauca","Direccion Regional",18]
[86,8600,10000,"Regional Arauca","Grupo Administrativo",20]
[86,8600,10010,"Regional Arauca","Grupo de Asistencia Tecnica",27]
[86,8600,20000,"Regional Arauca","Grupo de Planeacion y Sistemas",30]
[86,8600,30000,"Regional Arauca","Grupo Financiero",16]
[86,8600,40000,"Regional Arauca","Grupo Juridico",14]
[86,8600,50000,"Regional Casanare","Centro Paz de Ariporo",21]
[86,8601,10100,"Regional Casanare","Centro Zonal Villanueva",23]
[86,8602,10300,"Regional Casanare","Centro Zonal Yopal",18]
[86,8603,10200,"Regional Casanare","Direccion Regional",18]
[86,8604,10400,"Regional Casanare","Grupo Administrativo",20]
[88,8800,10000,"Regional Casanare","Grupo de Asistencia Tecnica",27]
[88,8800,10010,"Regional Casanare","Grupo de Planeacion y Sistemas",30]
[88,8800,20000,"Regional Casanare","Grupo Financiero",16]
[88,8800,30000,"Regional Casanare","Grupo Juridico",14]
[88,8800,40000,"Regional Putumayo","Centro Zonal La Hormiga",23]
[88,8800,50000,"Regional Putumayo","Centro Zonal Mocoa",18]
[88,8801,10100,"Regional Putumayo","Centro Zonal Puerto Asis",24]
[91,9100,10000,"Regional Putumayo","Centro Zonal Sibundoy",21]
[91,9100,30000,"Regional Putumayo","Direccion Regional",18]
[91,9100,40000,"Regional Putumayo","Grupo Administrativo",20]
[91,9101,10100,"Regional Putumayo","Grupo de Asistencia Tecnica",27]
[94,9400,10000,"Regional Putumayo","Grupo de Planeacion y Sistemas",30]
[94,9400,30000,"Regional Putumayo","Grupo Financiero",16]
[94,9400,40000,"Regional Putumayo","Grupo Juridico",14]
[94,9401,10100,"Regional San Andres","Centro Zonal Los Almendros",26]
[95,9500,10000,"Regional San Andres","Direccion Regional",18]
[95,9500,30000,"Regional San Andres","Grupo Administrativo",20]
[95,9500,40000,"Regional San Andres","Grupo de Asistencia Tecnica",27]
[95,9501,10100,"Regional San Andres","Grupo de Planeacion y Sistemas",30]
[97,9700,10000,"Regional San Andres","Grupo Financiero",16]
[97,9700,30000,"Regional San Andres","Grupo Juridico",14]
[97,9700,40000,"Regional Amazonas","Centro Zonal Leticia",20]
[97,9701,10100,"Regional Amazonas","Direccion Regional",18]
[99,9900,10000,"Regional Amazonas","Grupo de Asistencia Tecnica",27]
[99,9900,30000,"Regional Amazonas","Grupo de Gestion de Soporte",27]
[99,9900,40000,"Regional Guainia","Centro Zonal Inirida",20]
[99,9901,10100,"Regional Guainia","Direccion Regional",18]
[null,null,null,"Regional Guainia","Grupo Asistencia Tecnica",24]
[null,null,null,"Regional Guainia","Grupo de Gestion de Soporte",27]
[null,null,null,"Regional Guaviare","Centro Zonal San Jose del Guaviare",34]
[null,null,null,"Regional Guaviare","Direccion Regional",18]
[null,null,null,"Regional Guaviare","Grupo Asistencia Tecnica",24]
[null,null,null,"Regional Guaviare","Grupo de Gestion de Soporte",27]
[null,null,null,"Regional Vaupes","Centro Zonal Mitu",17]
[null,null,null,"Regional Vaupes","Direccion Regional",18]
[null,null,null,"Regional Vaupes","Grupo Asistencia Tecnica",24]
[null,null,null,"Regional Vaupes","Grupo de Gestion de Soporte",27]
[null,null,null,"Regional Vichada","Centro Zonal Puerto Carreño",27]
[null,null,null,"Regional Vichada","Direccion Regional",18]
[null,null,null,"Regional Vichada","Grupo Asistencia Tecnica",24]
[null,null,null,"Regional Vichada","Grupo de Gestion de Soporte",27]
[null,null,null,"Sede de la Direccion General","Grupo de Quejas",15]
[null,null,null,"Sede de la Direccion General","Grupo de Recaudo",16]
[null,null,null,"Sede de la Direccion General","Grupo de Registro y Control",27]
[null,null,null,"Sede de la Direccion General","Grupo de Representacion Judicial",32]
[null,null,null,"Sede de la Direccion General","Grupo de Supervision Contractual",32]
[null,null,null,"Sede de la Direccion General","Grupo de Tesoreria",18]
[null,null,null,"Sede de la Direccion General","Grupo Especial de Actuacion Inmediata",37]
[null,null,null,"Sede de la Direccion General","Grupo Financiero Sede de la Direccion General",45]
[null,null,null,"Sede de la Direccion General","Grupo Plan de Compras y Contratacion",36]

{"sheet":"Datos","index":4,"n_rows":265,"n_cols":4,"rows_kept":265,"cut":false,"hidden":true,"merged":[]}
[]
[null,"Sede la Dirección General o Regional","Dirección General, Subdirección General o Secretaría General","Dirección, Oficina, Centrz Zonal, o Grupo a nivel de Regional "]
[null,"Sede de la Direccion General","Direccion General","Dirección General"]
[null,"Regional Amazonas","Secretaria General","Oficina de Control Interno"]
[null,"Regional Antioquia","Subdireccion General","Oficina de Control Disciplinario Interno OCDI"]
[null,"Regional Arauca","Direccion Regional Amazonas","Oficina Asesora de Comunicaciones"]
[null,"Regional Atlantico","Direccion Regional Antioquia","Oficina de Cooperación "]
[null,"Regional Bogota","Direccion Regional Arauca","Oficina Jurídica"]
[null,"Regional Bolivar","Direccion Regional Atlantico","Oficina de Inspección, Vigilancia y Control, y Calidad de Servicios "]
[null,"Regional Boyaca","Direccion Regional Bogota","Oficina de Gestión Regional"]
[null,"Regional Caldas","Direccion Regional Bolivar","Dirección de Tecnologías de la Información"]
[null,"Regional Caqueta","Direccion Regional Boyaca","Direcciones Regionales"]
[null,"Regional Casanare","Direccion Regional Caldas","Dirección Sistema Nacional de Bienestar Familiar"]
[null,"Regional Cauca","Direccion Regional Caqueta","Subdirección de Articulación Nacional del SNBF"]
[null,"Regional Cesar","Direccion Regional Casanare","Subdirección de Articulación Territorial del SNBF"]
[null,"Regional Choco","Direccion Regional Cauca","Subdirección de Autoridades Administrativas"]
[null,"Regional Cordoba","Direccion Regional Cesar","Dirección de Planeación y Control de Gestión"]
[null,"Regional Cundinamarca","Direccion Regional Choco","Subdirección de Programación"]
[null,"Regional Guainia","Direccion Regional Cordoba","Subdirección de Mejoramiento Organizacional"]
[null,"Regional Guajira","Direccion Regional Cundinamarca","Subdirección de Monitoreo y Evaluación"]
[null,"Regional Guaviare","Direccion Regional Guainia","Subdirección General"]
[null,"Regional Huila","Direccion Regional Guajira","Dirección de Primera Infancia"]
[null,"Regional Magdalena","Direccion Regional Guaviare","Subdirección de Atención Integral Interinstitucional"]
[null,"Regional Meta","Direccion Regional Huila","Subdirección de Atención Integral Familiar Comunitaria"]
[null,"Regional Narino","Direccion Regional Magdalena","Subdirección de Atención Integral Propia e Intercultural"]
[null,"Regional Norte de Santander","Direccion Regional Meta","Dirección de Infancias y Adolescencias"]
[null,"Regional Putumayo","Direccion Regional Narino","Subdirección de Atención Integral a Niños, Niñas y Adolescentes"]
[null,"Regional Quindio","Direccion Regional Norte de Santander","Subdirección de Prevención de Vulneraciones Niños, Niñas y Adolescentes"]
[null,"Regional Risaralda","Direccion Regional Putumayo","Dirección de Familias, Comunidades y Pueblos"]
[null,"Regional San Andres","Direccion Regional Quindio","Subdirección de Familias y Comunidades"]
[null,"Regional Santander","Direccion Regional Risaralda","Subdirección de Pueblos Étnicos y Campesinos"]
[null,"Regional Sucre","Direccion Regional San Andres","Dirección de Nutrición"]
[null,"Regional Tolima","Direccion Regional Santander","Subdirección de Gestión Estratégica para el Derecho Humano a la Alimentación. "]
[null,"Regional Valle","Direccion Regional Sucre","Subdirección de Atención en Alimentación y Nutrición"]
[null,"Regional Vaupes","Direccion Regional Tolima","Dirección de Protección Especial"]
[null,"Regional Vichada","Direccion Regional Valle","Subdirección de Restablecimiento de Derechos  "]
[null,null,"Direccion Regional Vaupes","Subdirección de Responsabilidad Penal"]
[null,null,"Direccion Regional Vichada","Subdirección de Adopciones"]
[null,null,null,"Secretaría General"]
[null,null,null,"Dirección de Talento Humano "]
[null,null,null,"Dirección de Relación con la Ciudadanía "]
[null,null,null,"Dirección Financiera"]
[null,null,null,"Dirección de Contratación"]
[null,null,null,"Dirección Administrativa"]
[null,null,null,"Dirección de Abastecimiento"]
[null,null,null,"Comisión de Personal"]
[null,null,null,"Comité de Coordinación del Sistema de Control Interno"]
[null,null,null,"Comité de Defensa Judicial y Conciliación"]
[null,null,null,"Centro Zonal Aburra Norte"]
[null,null,null,"Centro Zonal Aburra Sur"]
[null,null,null,"Centro Zonal Acacias"]
[null,null,null,"Centro Zonal Aguachica"]
[null,null,null,"Centro Zonal Agustin Codazzi"]
[null,null,null,"Centro Zonal Antonia Santos"]
[null,null,null,"Centro Zonal Arauca"]
[null,null,null,"Centro Zonal Armenia Norte"]
[null,null,null,"Centro Zonal Armenia Sur"]
[null,null,null,"Centro Zonal Bahia Solano"]
[null,null,null,"Centro Zonal Bajo Cauca"]
[null,null,null,"Centro Zonal Baranoa"]
[null,null,null,"Centro Zonal Barbacoas"]
[null,null,null,"Centro Zonal Barrios Unidos"]
[null,null,null,"Centro Zonal Belen de los Andaquies"]
[null,null,null,"Centro Zonal Belen de Umbria"]
[null,null,null,"Centro Zonal Bosa"]
[null,null,null,"Centro Zonal Boston"]
[null,null,null,"Centro Zonal Bucaramanga Sur"]
[null,null,null,"Centro Zonal Buenaventura"]
[null,null,null,"Centro Zonal Buga"]
[null,null,null,"Centro Zonal Calarca"]
[null,null,null,"Centro Zonal Caqueza"]
[null,null,null,"Centro Zonal Carlos Lleras Restrepo"]
[null,null,null,"Centro Zonal Cartago"]
[null,null,null,"Centro Zonal Centro"]
[null,null,null,"Centro Zonal Centro."]
[null,null,null,"Centro Zonal Cerete"]
[null,null,null,"Centro Zonal Chaparral"]
[null,null,null,"Centro Zonal Chiquinquira"]
[null,null,null,"Centro Zonal Chiriguana"]
[null,null,null,"Centro Zonal Choconta"]
[null,null,null,"Centro Zonal Cienaga"]
[null,null,null,"Centro Zonal Ciudad Bolivar"]
[null,null,null,"Centro Zonal Costa Pacifica"]
[null,null,null,"Centro Zonal Cucuta 1"]
[null,null,null,"Centro Zonal Cucuta 2"]
[null,null,null,"Centro Zonal Cucuta 3"]
[null,null,null,"Centro Zonal de la Virgen y Turistico"]
[null,null,null,"Centro Zonal del Cafe"]
[null,null,null,"Centro Zonal del Rio"]
[null,null,null,"Centro Zonal Dos Quebradas"]
[null,null,null,"Centro Zonal Duitama"]
[null,null,null,"Centro Zonal El Banco"]
[null,null,null,"Centro Zonal El Carmen de Bolivar"]
[null,null,null,"Centro Zonal El Cocuy"]
[null,null,null,"Centro Zonal Engativa"]
[null,null,null,"Centro Zonal Espinal"]
[null,null,null,"Centro Zonal Facatativa"]
[null,null,null,"Centro Zonal Florencia 1"]
[null,null,null,"Centro Zonal Florencia 2"]
[null,null,null,"Centro Zonal Fonseca"]
[null,null,null,"Centro Zonal Fontibon"]
[null,null,null,"Centro Zonal Fundacion"]
[null,null,null,"Centro Zonal Fusagasuga"]
[null,null,null,"Centro Zonal Gacheta"]
[null,null,null,"Centro Zonal Galan"]
[null,null,null,"Centro Zonal Garagoa"]
[null,null,null,"Centro Zonal Garzon"]
[null,null,null,"Centro Zonal Girardot"]
[null,null,null,"Centro Zonal Granada"]
[null,null,null,"Centro Zonal Hipodromo"]
[null,null,null,"Centro Zonal Historico y del Caribe Norte"]
[null,null,null,"Centro Zonal Honda"]
[null,null,null,"Centro Zonal Ibague"]
[null,null,null,"Centro Zonal Ichitki Wayuuwaapule"]
[null,null,null,"Centro Zonal Indigena"]
[null,null,null,"Centro Zonal Industrial de la Bahia"]
[null,null,null,"Centro Zonal Inirida"]
[null,null,null,"Centro Zonal Integral Sur Oriental"]
[null,null,null,"Centro Zonal Ipiales"]
[null,null,null,"Centro Zonal Istmina"]
[null,null,null,"Centro Zonal Jamundi"]
[null,null,null,"Centro Zonal Jordan"]
[null,null,null,"Centro Zonal Kennedy"]
[null,null,null,"Centro Zonal Kennedy Central"]
[null,null,null,"Centro Zonal la Floresta"]
[null,null,null,"Centro Zonal La Floresta - Rol Protección"]
[null,null,null,"Centro Zonal La Gaitana"]
[null,null,null,"Centro Zonal La Hormiga"]
[null,null,null,"Centro Zonal La Mesa"]
[null,null,null,"Centro Zonal La Meseta"]
[null,null,null,"Centro Zonal La Mojana"]
[null,null,null,"Centro Zonal La Plata"]
[null,null,null,"Centro Zonal La Union"]
[null,null,null,"Centro Zonal La Virginia"]
[null,null,null,"Centro Zonal Ladera"]
[null,null,null,"Centro Zonal Lerida"]
[null,null,null,"Centro Zonal Leticia"]
[null,null,null,"Centro Zonal Libano"]
[null,null,null,"Centro Zonal Lorica"]
[null,null,null,"Centro Zonal Los Almendros"]
[null,null,null,"Centro Zonal Luis Carlos Galan Sarmiento"]
[null,null,null,"Centro Zonal Macizo Colombiano"]
[null,null,null,"Centro Zonal Magangue"]
[null,null,null,"Centro Zonal Magdalena Medio"]
[null,null,null,"Centro Zonal Maicao"]
[null,null,null,"Centro Zonal Malaga"]
[null,null,null,"Centro Zonal Manaure"]
[null,null,null,"Centro Zonal Manizales 1"]
[null,null,null,"Centro Zonal Manizales 2"]
[null,null,null,"Centro Zonal Martires"]
[null,null,null,"Centro Zonal Melgar"]
[null,null,null,"Centro Zonal Miraflores"]
[null,null,null,"Centro Zonal Mitu"]
[null,null,null,"Centro Zonal Mocoa"]
[null,null,null,"Centro Zonal Mompox"]
[null,null,null,"Centro Zonal Moniquira"]
[null,null,null,"Centro Zonal MonteLibano"]
[null,null,null,"Centro Zonal Monteria 1"]
[null,null,null,"Centro Zonal Nazareth"]
[null,null,null,"Centro Zonal Neiva 1"]
[null,null,null,"Centro Zonal Nor_oriental"]
[null,null,null,"Centro Zonal Noroccidental"]
[null,null,null,"Centro Zonal Nororiental"]
[null,null,null,"Centro Zonal Norte Centro Historico"]
[null,null,null,"Centro Zonal Norte."]
[null,null,null,"Centro Zonal Norte.."]
[null,null,null,"Centro Zonal Norte..."]
[null,null,null,"Centro Zonal Ocaña"]
[null,null,null,"Centro Zonal Occidente"]
[null,null,null,"Centro Zonal Occidente Medio"]
[null,null,null,"Centro Zonal Occidente."]
[null,null,null,"Centro Zonal Old Providence"]
[null,null,null,"Centro Zonal Oriental"]
[null,null,null,"Centro Zonal Oriente"]
[null,null,null,"Centro Zonal Oriente Medio"]
[null,null,null,"Centro Zonal Otanche"]
[null,null,null,"Centro Zonal Pacho"]
[null,null,null,"Centro Zonal Palmira"]
[null,null,null,"Centro Zonal Pamplona"]
[null,null,null,"Centro Zonal Pasto 1"]
[null,null,null,"Centro Zonal Pasto 2"]
[null,null,null,"Centro Zonal Paz de Ariporo"]
[null,null,null,"Centro Zonal Penderisco"]
[null,null,null,"Centro Zonal Pereira"]
[null,null,null,"Centro Zonal Pitalito"]
[null,null,null,"Centro Zonal Planeta Rica"]
[null,null,null,"Centro Zonal Plato"]
[null,null,null,"Centro Zonal Popayan"]
[null,null,null,"Centro Zonal Porce Nus"]
[null,null,null,"Centro Zonal Puente Aranda"]
[null,null,null,"Centro Zonal Puerto Asis"]
[null,null,null,"Centro Zonal Puerto Boyaca"]
[null,null,null,"Centro Zonal Puerto Carreño"]
[null,null,null,"Centro Zonal Puerto Lopez"]
[null,null,null,"Centro Zonal Puerto Rico"]
[null,null,null,"Centro Zonal Purificacion"]
[null,null,null,"Centro Zonal Quibdo"]
[null,null,null,"Centro Zonal Rafael Uribe"]
[null,null,null,"Centro Zonal Remolino"]
[null,null,null,"Centro Zonal Restaurar"]
[null,null,null,"Centro Zonal Restitución Especializado Efecto Reanudar - Creer"]
[null,null,null,"Centro Zonal Resurgir"]
[null,null,null,"Centro Zonal Revivir"]
[null,null,null,"Centro Zonal Riohacha 1"]
[null,null,null,"Centro Zonal Riohacha 2"]
[null,null,null,"Centro Zonal Riosucio"]
[null,null,null,"Centro Zonal Roldanillo"]
[null,null,null,"Centro Zonal Rosales"]
[null,null,null,"Centro Zonal Sabanagrande"]
[null,null,null,"Centro Zonal Sabanalarga"]
[null,null,null,"Centro Zonal Sahagun"]
[null,null,null,"Centro Zonal San Andres de Sotavento"]
[null,null,null,"Centro Zonal San Cristobal Sur"]
[null,null,null,"Centro Zonal San Gil"]
[null,null,null,"Centro Zonal San Jose del Guaviare"]
[null,null,null,"Centro Zonal San Juan de Rioseco"]
[null,null,null,"Centro Zonal Santa ana"]
[null,null,null,"Centro Zonal Santa Marta Norte"]
[null,null,null,"Centro Zonal Santa Marta Sur"]
[null,null,null,"Centro Zonal Santa Rosa de Cabal"]
[null,null,null,"Centro Zonal Santafe"]
[null,null,null,"Centro Zonal Saravena"]
[null,null,null,"Centro Zonal Sevilla"]
[null,null,null,"Centro Zonal Sibundoy"]
[null,null,null,"Centro Zonal Simiti"]
[null,null,null,"Centro Zonal Sincelejo"]
[null,null,null,"Centro Zonal Soacha"]
[null,null,null,"Centro Zonal Soacha Centro"]
[null,null,null,"Centro Zonal Soata"]
[null,null,null,"Centro Zonal Socorro"]
[null,null,null,"Centro Zonal Sogamoso"]
[null,null,null,"Centro Zonal Suba"]
[null,null,null,"Centro Zonal Sur"]
[null,null,null,"Centro Zonal Sur occidente"]
[null,null,null,"Centro Zonal Sur oriente"]
[null,null,null,"Centro Zonal Sur."]
[null,null,null,"Centro Zonal Suroeste"]
[null,null,null,"Centro Zonal Suroriental"]
[null,null,null,"Centro Zonal Suroriente"]
[null,null,null,"Centro Zonal Tado"]
[null,null,null,"Centro Zonal Tame"]
[null,null,null,"Centro Zonal Tibu"]
[null,null,null,"Centro Zonal Tierralta"]
[null,null,null,"Centro Zonal Tulua"]
[null,null,null,"Centro Zonal Tumaco"]
[null,null,null,"Centro Zonal Tunja 1"]
[null,null,null,"Centro Zonal Tunja 2"]
[null,null,null,"Centro Zonal Tunjuelito"]
[null,null,null,"Centro Zonal Tuquerres"]
[null,null,null,"Centro Zonal Turbaco"]
[null,null,null,"Centro Zonal Ubate"]
[null,null,null,"Centro Zonal Uraba"]
[null,null,null,"Centro Zonal Usaquen"]
[null,null,null,"Centro Zonal Usme"]
[null,null,null,"Centro Zonal Valledupar 1"]
[null,null,null,"Centro Zonal Valledupar 2"]
[null,null,null,"Centro Zonal Velez"]
[null,null,null,"Centro Zonal Villanueva"]
[null,null,null,"Centro Zonal Villavicencio 1"]
[null,null,null,"Centro Zonal Villavicencio 2"]
[null,null,null,"Centro Zonal Villeta"]
[null,null,null,"Centro Zonal Yariguies - Rol Protección"]
[null,null,null,"Centro Zonal Yopal"]
[null,null,null,"Centro Zonal Yumbo"]
[null,null,null,"Centro Zonal Zipaquira"]